Publisher Label,Publisher URI,"Supplier","Invoice ","Amount (£)","Purpose","Transaction Number","Payment Date","Organisational Unit","Cost Centre(T)","Internal category number"
"Wolverhampton City Council","http://opendatacommunities.org/id/metropolitan-district-council/wolverhampton","Hays Specialist Recruitment Limited","1006881381","576.32","Agency Staff","130138114","14/10/2016","The Hub","Payroll/HR","R1100"
"Wolverhampton City Council","http://opendatacommunities.org/id/metropolitan-district-council/wolverhampton","Hays Specialist Recruitment Limited","1006888605","387.84","Agency Staff","130138115","14/10/2016","The Hub","Payments Team","R1100"
"Wolverhampton City Council","http://opendatacommunities.org/id/metropolitan-district-council/wolverhampton","Headway Black Country","231820161017","200.00","TPP - Day Care","190276029","19/10/2016","Physical Disabilities Assessment","PD Care Purchasing (Spot Placements)","R5430"
"Wolverhampton City Council","http://opendatacommunities.org/id/metropolitan-district-council/wolverhampton","Headway Black Country","231620161017","200.00","TPP - Day Care","190276027","19/10/2016","Physical Disabilities Assessment","PD Care Purchasing (Spot Placements)","R5430"
"Wolverhampton City Council","http://opendatacommunities.org/id/metropolitan-district-council/wolverhampton","Headway Black Country","231620161017","200.00","TPP - Day Care","190276027","19/10/2016","Physical Disabilities Assessment","PD Care Purchasing (Spot Placements)","R5430"
"Wolverhampton City Council","http://opendatacommunities.org/id/metropolitan-district-council/wolverhampton","Headway Black Country","231720161017","400.00","TPP - Day Care","190276028","19/10/2016","Physical Disabilities Assessment","PD Care Purchasing (Spot Placements)","R5430"
"Wolverhampton City Council","http://opendatacommunities.org/id/metropolitan-district-council/wolverhampton","Headway Black Country","231520161017","120.00","TPP - Day Care","190276026","19/10/2016","Physical Disabilities Assessment","PD Care Purchasing (Spot Placements)","R5430"
"Wolverhampton City Council","http://opendatacommunities.org/id/metropolitan-district-council/wolverhampton","Headway Black Country","231420161017","400.00","TPP - Day Care","190276025","19/10/2016","Physical Disabilities Assessment","PD Care Purchasing (Spot Placements)","R5430"
"Wolverhampton City Council","http://opendatacommunities.org/id/metropolitan-district-council/wolverhampton","Higgs & Sons Solicitors","74899324","477.00","Services - Professional Fees","130141432","26/10/2016","Human Resources","HR Advice","R4400"
"Wolverhampton City Council","http://opendatacommunities.org/id/metropolitan-district-council/wolverhampton","Hills Coaches Limited","29266","220.00","Subsistence","130138521","07/10/2016","Strategic Director Place","City Marketing (Place)","R4610"
"Wolverhampton City Council","http://opendatacommunities.org/id/metropolitan-district-council/wolverhampton","Hills Coaches Limited","29447","700.00","Client Transport","130142187","26/10/2016","Early Intervention","EIP Locality 2","R3042"
"Wolverhampton City Council","http://opendatacommunities.org/id/metropolitan-district-council/wolverhampton","Hills Coaches Limited","29425","800.00","Client Transport","130141620","26/10/2016","School Planning & Resources","Towers Outdoor Education Centre","R3042"
"Wolverhampton City Council","http://opendatacommunities.org/id/metropolitan-district-council/wolverhampton","Hills Coaches Limited","29341","2,460.00","Client Transport","130138961","12/10/2016","School Planning & Resources","Special - Transport","R3042"
"Wolverhampton City Council","http://opendatacommunities.org/id/metropolitan-district-council/wolverhampton","Hills Coaches Limited","29219","820.00","Client Transport","130137826","12/10/2016","School Planning & Resources","Towers Outdoor Education Centre","R3042"
"Wolverhampton City Council","http://opendatacommunities.org/id/metropolitan-district-council/wolverhampton","Hills Coaches Limited","29281","1,200.00","Client Transport","130138809","12/10/2016","School Planning & Resources","Towers Outdoor Education Centre","R3042"
"Wolverhampton City Council","http://opendatacommunities.org/id/metropolitan-district-council/wolverhampton","Hills Coaches Limited","29282","800.00","Client Transport","130138810","12/10/2016","School Planning & Resources","Towers Outdoor Education Centre","R3042"
"Wolverhampton City Council","http://opendatacommunities.org/id/metropolitan-district-council/wolverhampton","Hills Coaches Limited","29415","350.00","Hire of Vehicles","130141187","19/10/2016","Standards and Vulnerable Pupils","SACRE","R3200"
"Wolverhampton City Council","http://opendatacommunities.org/id/metropolitan-district-council/wolverhampton","Hilton Main Construction Limited","28829","625.20","R&M - Departmental response (external)","130138350","05/10/2016","Highways Maintenance","Patching","R2003"
"Wolverhampton City Council","http://opendatacommunities.org/id/metropolitan-district-council/wolverhampton","Hilton Main Construction Limited","28827","1,575.00","R&M - Departmental response (external)","130138348","05/10/2016","Highways Maintenance","Patching","R2003"
"Wolverhampton City Council","http://opendatacommunities.org/id/metropolitan-district-council/wolverhampton","Hilton Main Construction Limited","28828","1,940.00","R&M - Departmental response (external)","130138349","05/10/2016","Highways Maintenance","Patching","R2003"
"Wolverhampton City Council","http://opendatacommunities.org/id/metropolitan-district-council/wolverhampton","Hilton Main Construction Limited","117","825.00","Construction and Conversion","130137233","07/10/2016","","Safety Programme","C1100"
"Wolverhampton City Council","http://opendatacommunities.org/id/metropolitan-district-council/wolverhampton","Hilton Main Construction Limited","28799","2,953.56","R&M - Departmental response (external)","130137515","07/10/2016","Facilities Management","Management of Vacant Properties","R2003"
"Wolverhampton City Council","http://opendatacommunities.org/id/metropolitan-district-council/wolverhampton","Hilton Main Construction Limited","28801","714.75","R&M - Departmental response (external)","130137516","07/10/2016","Operation & Maintenance of Existing Network","Public Rights of Way (CROW Act 2000)","R2003"
"Wolverhampton City Council","http://opendatacommunities.org/id/metropolitan-district-council/wolverhampton","Hilton Main Construction Limited","28797","8,661.90","External Professional Fees","130137514","07/10/2016","","Bilston Urban Village","C6002"
"Wolverhampton City Council","http://opendatacommunities.org/id/metropolitan-district-council/wolverhampton","Hilton Main Construction Limited","28796","1,477.70","R&M - Departmental response (external)","130137513","07/10/2016","Highways Maintenance","Patching","R2003"
"Wolverhampton City Council","http://opendatacommunities.org/id/metropolitan-district-council/wolverhampton","Hilton Main Construction Limited","28894","6,909.96","R&M - Departmental response (external)","130139345","26/10/2016","Highways Maintenance","Fencing & Guard Rails","R2003"
"Wolverhampton City Council","http://opendatacommunities.org/id/metropolitan-district-council/wolverhampton","Hilton Main Construction Limited","28893","712.80","R&M - Departmental response (external)","130139344","26/10/2016","Highways Maintenance","Planned Highways Maintenance","R2003"
"Wolverhampton City Council","http://opendatacommunities.org/id/metropolitan-district-council/wolverhampton","Hilton Main Construction Limited","74","690.00","Construction and Conversion","130139507","12/10/2016","","Active Travel Programme","C1100"
"Wolverhampton City Council","http://opendatacommunities.org/id/metropolitan-district-council/wolverhampton","Hilton Main Construction Limited","28906","635.76","R&M - Departmental response (external)","130140042","21/10/2016","Highways Maintenance","Patching","R2003"
"Wolverhampton City Council","http://opendatacommunities.org/id/metropolitan-district-council/wolverhampton","Hilton Main Construction Limited","28907","1,575.00","R&M - Departmental response (external)","130140043","21/10/2016","Highways Maintenance","Patching","R2003"
"Wolverhampton City Council","http://opendatacommunities.org/id/metropolitan-district-council/wolverhampton","Hilton Main Construction Limited","28908","1,550.50","R&M - Departmental response (external)","130140044","21/10/2016","Highways Maintenance","Patching","R2003"
"Wolverhampton City Council","http://opendatacommunities.org/id/metropolitan-district-council/wolverhampton","Hilton Main Construction Limited","28275","-5,141.70","R&M - Departmental response (external)","130141394","21/10/2016","Street Lighting","Signs Illuminated","R2003"
"Wolverhampton City Council","http://opendatacommunities.org/id/metropolitan-district-council/wolverhampton","Hilton Main Construction Limited","28849","7,430.26","Construction and Conversion","130138672","21/10/2016","","City Centre Transport & Movement Enhancements","C1100"
"Wolverhampton City Council","http://opendatacommunities.org/id/metropolitan-district-council/wolverhampton","Hilton Main Construction Limited","28850","1,202.54","R&M - Departmental response (external)","130138673","21/10/2016","Facilities Management","Civic Centre","R2003"
"Wolverhampton City Council","http://opendatacommunities.org/id/metropolitan-district-council/wolverhampton","Hilton Main Construction Limited","28843","570.00","R&M - Departmental planned (external)","130138669","21/10/2016","Facilities Management","Hickman Avenue Depot","R2001"
"Wolverhampton City Council","http://opendatacommunities.org/id/metropolitan-district-council/wolverhampton","Hilton Main Construction Limited","28844","1,634.00","R&M - Departmental planned (external)","130138670","21/10/2016","Facilities Management","Culwell Street Depot","R2001"
"Wolverhampton City Council","http://opendatacommunities.org/id/metropolitan-district-council/wolverhampton","Hilton Main Construction Limited","28839","144.97","R&M - Departmental planned (external)","130138665","21/10/2016","Facilities Management","Parkfields Office Accomodation","R2001"
"Wolverhampton City Council","http://opendatacommunities.org/id/metropolitan-district-council/wolverhampton","Hilton Main Construction Limited","28842","490.00","R&M - Departmental planned (external)","130138668","21/10/2016","Facilities Management","Hickman Avenue Depot","R2001"
"Wolverhampton City Council","http://opendatacommunities.org/id/metropolitan-district-council/wolverhampton","Hilton Main Construction Limited","28841","370.00","R&M - Departmental planned (external)","130138667","21/10/2016","Cleaning","Priory Green","R2001"
"Wolverhampton City Council","http://opendatacommunities.org/id/metropolitan-district-council/wolverhampton","Hilton Main Construction Limited","28840","2,254.31","R&M - Departmental planned (external)","130138666","21/10/2016","Markets","Wholesale Market Facilities Management","R2001"
"Wolverhampton City Council","http://opendatacommunities.org/id/metropolitan-district-council/wolverhampton","Hilton Main Construction Limited","28891","1,625.00","Hire of Vehicles","190275278","14/10/2016","Fleet Services","Fleet Management","R3200"
"Wolverhampton City Council","http://opendatacommunities.org/id/metropolitan-district-council/wolverhampton","Hilton Main Construction Limited","28890","1,625.00","Hire of Vehicles","190275277","14/10/2016","Fleet Services","Fleet Management","R3200"
"Wolverhampton City Council","http://opendatacommunities.org/id/metropolitan-district-council/wolverhampton","Hilton Main Construction Limited","28816","3,511.19","R&M - Departmental planned (internal)","130138346","14/10/2016","Leisure Services","Central Baths","R2000"
"Wolverhampton City Council","http://opendatacommunities.org/id/metropolitan-district-council/wolverhampton","Hilton Main Construction Limited","28832","1,550.50","R&M - Departmental response (external)","130138353","14/10/2016","Highways Maintenance","Patching","R2003"
"Wolverhampton City Council","http://opendatacommunities.org/id/metropolitan-district-council/wolverhampton","Hilton Main Construction Limited","28833","1,940.00","R&M - Departmental response (external)","130138354","14/10/2016","Highways Maintenance","Patching","R2003"
"Wolverhampton City Council","http://opendatacommunities.org/id/metropolitan-district-council/wolverhampton","Hilton Main Construction Limited","28826","1,140.22","R&M - Departmental response (external)","130138347","14/10/2016","Highways Maintenance","Patching","R2003"
"Wolverhampton City Council","http://opendatacommunities.org/id/metropolitan-district-council/wolverhampton","Hilton Main Construction Limited","28831","1,575.00","R&M - Departmental response (external)","130138352","14/10/2016","Highways Maintenance","Patching","R2003"
"Wolverhampton City Council","http://opendatacommunities.org/id/metropolitan-district-council/wolverhampton","HMCTS","DAVIESA","400.00","Services - Fees and Charges","190272260","05/10/2016","Safeguarding","Court of Protection, Funerals and Protection of Property","R4401"
"Wolverhampton City Council","http://opendatacommunities.org/id/metropolitan-district-council/wolverhampton","Hollybush Nurseries Limited","IN252","125.00","Gratuities","130139749","07/10/2016","Democratic Services","Mayoral Expenses","R1402"
"Wolverhampton City Council","http://opendatacommunities.org/id/metropolitan-district-council/wolverhampton","Hometrack Date Systems (Hds) Limited","2394595","1,024.00","Computing - Maint Agreements","130137250","07/10/2016","School Planning & Resources","Pupil & Student Support","R4534"
"Wolverhampton City Council","http://opendatacommunities.org/id/metropolitan-district-council/wolverhampton","Horizon Care & Education Group Limited","5976","6,695.00","TPP - Independent Schools","130140289","12/10/2016","Standards and Vulnerable Pupils","SEN Education OOC","R5036"
"Wolverhampton City Council","http://opendatacommunities.org/id/metropolitan-district-council/wolverhampton","Horizon Care & Education Group Limited","6042","7,900.10","TPP - Independent Schools","130140291","12/10/2016","Standards and Vulnerable Pupils","SEN Education OOC","R5036"
"Wolverhampton City Council","http://opendatacommunities.org/id/metropolitan-district-council/wolverhampton","Horizon Care & Education Group Limited","6295","12,675.00","TPP - Independent Schools","130140293","12/10/2016","Standards and Vulnerable Pupils","SEN Education OOC","R5036"
"Wolverhampton City Council","http://opendatacommunities.org/id/metropolitan-district-council/wolverhampton","Horizon Care & Education Group Limited","5930","12,675.00","TPP - Independent Schools","130140555","12/10/2016","Standards and Vulnerable Pupils","SEN Education OOC","R5036"
"Wolverhampton City Council","http://opendatacommunities.org/id/metropolitan-district-council/wolverhampton","Horizon Care & Education Group Limited","5984","6,695.00","TPP - Independent Schools","130140557","12/10/2016","Standards and Vulnerable Pupils","SEN Education OOC","R5036"
"Wolverhampton City Council","http://opendatacommunities.org/id/metropolitan-district-council/wolverhampton","Horizon Care & Education Group Limited","6385","1,950.00","TPP - Independent Schools","130140802","14/10/2016","Standards and Vulnerable Pupils","SEN Education OOC","R5036"
"Wolverhampton City Council","http://opendatacommunities.org/id/metropolitan-district-council/wolverhampton","House Of Fraser","6893","135.00","Gratuities","130138547","07/10/2016","Democratic Services","Mayoral Expenses","R1402"
"Wolverhampton City Council","http://opendatacommunities.org/id/metropolitan-district-council/wolverhampton","House Of Fraser","6894","15.00","Gratuities","130138548","07/10/2016","Democratic Services","Mayoral Expenses","R1402"
"Wolverhampton City Council","http://opendatacommunities.org/id/metropolitan-district-council/wolverhampton","HS Sports Limited","117246","685.00","Equipment - Purchase","130141143","26/10/2016","Leisure Services","Central Baths","R4000"
"Wolverhampton City Council","http://opendatacommunities.org/id/metropolitan-district-council/wolverhampton","Human Tissue Authority","P03985","6,900.00","Services - General Licences","130137905","07/10/2016","Democratic Services","Coroners","R4402"
"Wolverhampton City Council","http://opendatacommunities.org/id/metropolitan-district-council/wolverhampton","Hydrodec (UK) Limited","67495","215.00","Cleaning Supplies and Materials","190274685","12/10/2016","Fleet Services","Fleet Management","R2705"
"Wolverhampton City Council","http://opendatacommunities.org/id/metropolitan-district-council/wolverhampton","Hydrodec (UK) Limited","69501","383.25","Cleaning Supplies and Materials","190274690","12/10/2016","Fleet Services","Fleet Management","R2705"
"Wolverhampton City Council","http://opendatacommunities.org/id/metropolitan-district-council/wolverhampton","Ian Livie","INV10289","1,080.00","Equipment - R & M","130137731","07/10/2016","Visitor Economy","Civic Halls Non-Direct Event Management Account","R4003"
"Wolverhampton City Council","http://opendatacommunities.org/id/metropolitan-district-council/wolverhampton","Ian Livie","INV10301","1,268.00","Equipment - Hire","130139030","26/10/2016","Visitor Economy","Civic Halls Non-Direct Event Management Account","R4001"
"Wolverhampton City Council","http://opendatacommunities.org/id/metropolitan-district-council/wolverhampton","Ian Livie","INV10298","150.00","Equipment - R & M","130138863","21/10/2016","Visitor Economy","Civic Halls Non-Direct Event Management Account","R4003"
"Wolverhampton City Council","http://opendatacommunities.org/id/metropolitan-district-council/wolverhampton","Ian Livie","INV10299","800.00","Equipment - Hire","130138864","21/10/2016","Visitor Economy","Civic Halls - CHIP","R4001"
"Wolverhampton City Council","http://opendatacommunities.org/id/metropolitan-district-council/wolverhampton","Idox Software Limited","7011933","5,100.00","Computing - Maint Agreements","130139909","26/10/2016","Licensing","Licensing - Private Hire Vehicles","R4534"
"Wolverhampton City Council","http://opendatacommunities.org/id/metropolitan-district-council/wolverhampton","Idox Software Limited","7011826","3,500.00","Computing - Maint Agreements","130140803","26/10/2016","ICTS","Strategic ICTS (ICT Service Budget)","R4534"
"Wolverhampton City Council","http://opendatacommunities.org/id/metropolitan-district-council/wolverhampton","Indo Lighting Limited","SAJ/2016/0916","2,888.79","Materials","130138272","14/10/2016","Street Lighting","Signs Illuminated","R4007"
"Wolverhampton City Council","http://opendatacommunities.org/id/metropolitan-district-council/wolverhampton","Initial Projects Limited T/A Enitial","72607","225.00","Services - Professional Fees","130140089","26/10/2016","Public Protection","Bowmans Harbour","R4400"
"Wolverhampton City Council","http://opendatacommunities.org/id/metropolitan-district-council/wolverhampton","Initial Washroom Solutions","32095935","3.47","Cleaning Supplies and Materials","130138962","05/10/2016","Environmental Maintenance","Ground Maintenance East","R2705"
"Wolverhampton City Council","http://opendatacommunities.org/id/metropolitan-district-council/wolverhampton","Initial Washroom Solutions","32095935","3.47","Cleaning Supplies and Materials","130138962","05/10/2016","Environmental Maintenance","Street Cleansing East","R2705"
"Wolverhampton City Council","http://opendatacommunities.org/id/metropolitan-district-council/wolverhampton","Initial Washroom Solutions","32111225","66.82","Cleaning Supplies and Materials","130137683","07/10/2016","Facilities Management","Culwell Street Depot","R2705"
"Wolverhampton City Council","http://opendatacommunities.org/id/metropolitan-district-council/wolverhampton","Initial Washroom Solutions","32075376","18.29","Cleaning Supplies and Materials","130133797","14/10/2016","Bereavement Services","Crematorium","R2705"
"Wolverhampton City Council","http://opendatacommunities.org/id/metropolitan-district-council/wolverhampton","Initial Washroom Solutions","32111223","18.29","Cleaning Supplies and Materials","130137681","14/10/2016","Bereavement Services","Crematorium","R2705"
"Wolverhampton City Council","http://opendatacommunities.org/id/metropolitan-district-council/wolverhampton","Integrated Water Services Limited","CD200019132","306.75","R&M - Departmental planned (external)","130139434","05/10/2016","Facilities Management","Civic Centre","R2001"
"Wolverhampton City Council","http://opendatacommunities.org/id/metropolitan-district-council/wolverhampton","Integrated Water Services Limited","CD200017785","1,341.00","R&M - Departmental planned (external)","130139431","05/10/2016","Facilities Management","Civic Centre","R2001"
"Wolverhampton City Council","http://opendatacommunities.org/id/metropolitan-district-council/wolverhampton","Integrated Water Services Limited","CD200019201","60.00","R&M - Departmental planned (external)","130139436","05/10/2016","Maintenance Programme","Centralised R&M","R2001"
"Wolverhampton City Council","http://opendatacommunities.org/id/metropolitan-district-council/wolverhampton","Integrated Water Services Limited","CD200019163","6,184.05","R&M - Departmental planned (external)","130139435","05/10/2016","Maintenance Programme","Centralised R&M","R2001"
"Wolverhampton City Council","http://opendatacommunities.org/id/metropolitan-district-council/wolverhampton","Integrated Water Services Limited","CD200019202","60.00","R&M - Departmental planned (external)","130139437","05/10/2016","Maintenance Programme","Centralised R&M","R2001"
"Wolverhampton City Council","http://opendatacommunities.org/id/metropolitan-district-council/wolverhampton","Integrated Water Services Limited","CD200019204","60.00","R&M - Departmental planned (external)","130139439","05/10/2016","Maintenance Programme","Centralised R&M","R2001"
"Wolverhampton City Council","http://opendatacommunities.org/id/metropolitan-district-council/wolverhampton","Integrated Water Services Limited","CD200018460","347.82","R&M - Departmental planned (external)","130139432","05/10/2016","Maintenance Programme","Centralised R&M","R2001"
"Wolverhampton City Council","http://opendatacommunities.org/id/metropolitan-district-council/wolverhampton","Integrated Water Services Limited","CD200018469","60.00","R&M - Departmental planned (external)","130139433","07/10/2016","Maintenance Programme","Centralised R&M","R2001"
"Wolverhampton City Council","http://opendatacommunities.org/id/metropolitan-district-council/wolverhampton","Integrated Water Services Limited","CD200021386","347.82","R&M - Departmental planned (external)","130141666","26/10/2016","Maintenance Programme","Centralised R&M","R2001"
"Wolverhampton City Council","http://opendatacommunities.org/id/metropolitan-district-council/wolverhampton","Integrated Water Services Limited","CD200021385","306.75","R&M - Departmental planned (external)","130141665","26/10/2016","Facilities Management","Civic Centre","R2001"
"Wolverhampton City Council","http://opendatacommunities.org/id/metropolitan-district-council/wolverhampton","Integrated Water Services Limited","CD200019142","998.75","R&M - Departmental planned (external)","130140137","12/10/2016","Facilities Management","Civic Centre","R2001"
"Wolverhampton City Council","http://opendatacommunities.org/id/metropolitan-district-council/wolverhampton","Integrated Water Services Limited","CD200020439","2,000.00","Construction and Conversion","130141664","28/10/2016","","Black Country Growth Deal � Cultural Programme","C1100"
"Wolverhampton City Council","http://opendatacommunities.org/id/metropolitan-district-council/wolverhampton","Integrated Water Services Limited","5135277","402.50","R&M - Departmental planned (external)","130123230","30/10/2016","Facilities Management","Civic Centre","R2001"
"Wolverhampton City Council","http://opendatacommunities.org/id/metropolitan-district-council/wolverhampton","Interclass PLC","10626","110,741.01","Construction and Conversion","130141597","19/10/2016","","Primary Expansion Programme","C1100"
"Wolverhampton City Council","http://opendatacommunities.org/id/metropolitan-district-council/wolverhampton","Interwaste Municipal Limitedc/O Fleet Ca","21664","500.00","Equipment - Purchase","190275274","14/10/2016","Fleet Services","Fleet Management","R4000"
"Wolverhampton City Council","http://opendatacommunities.org/id/metropolitan-district-council/wolverhampton","Interwaste Municipal Limitedc/O Fleet Ca","21664","3.12","Equipment - Purchase","190275274","14/10/2016","Fleet Services","Fleet Management","R4000"
"Wolverhampton City Council","http://opendatacommunities.org/id/metropolitan-district-council/wolverhampton","Intuitive Thinking Skills Ltd","11459","3,500.00","TPP - Public Health Contracts","130137495","07/10/2016","Contracts","Alcohol and Drug","R5060"
"Wolverhampton City Council","http://opendatacommunities.org/id/metropolitan-district-council/wolverhampton","Invasive Vegetation Management & Treatment Limited","003571","1,185.00","R&M - Departmental planned (external)","130133994","21/10/2016","School Planning & Resources","Other Support Services","R2001"
"Wolverhampton City Council","http://opendatacommunities.org/id/metropolitan-district-council/wolverhampton","Invasive Vegetation Management & Treatment Limited","003725","250.00","Services - Fees and Charges","130140745","14/10/2016","Housing Revenue Account","HRA General","R4401"
"Wolverhampton City Council","http://opendatacommunities.org/id/metropolitan-district-council/wolverhampton","IOSH Services Limited","IS L164200","300.00","Training Expenses","130138872","05/10/2016","Adult Education","Direct Delivery Team ( L.& D.)","R1650"
"Wolverhampton City Council","http://opendatacommunities.org/id/metropolitan-district-council/wolverhampton","J Edwards Glass","0000100339","4,492.00","R&M - Departmental planned (external)","130135596","12/10/2016","Maintenance Programme","Centralised R&M","R2001"
"Wolverhampton City Council","http://opendatacommunities.org/id/metropolitan-district-council/wolverhampton","J Edwards Glass","0000100438","85.00","R&M - Departmental planned (external)","130140204","12/10/2016","Facilities Management","Caretakers Community Centre","R2001"
"Wolverhampton City Council","http://opendatacommunities.org/id/metropolitan-district-council/wolverhampton","J Edwards Glass","0000100441","70.23","R&M - Departmental planned (external)","130140880","19/10/2016","Facilities Management","Management of Vacant Properties","R2001"
"Wolverhampton City Council","http://opendatacommunities.org/id/metropolitan-district-council/wolverhampton","J Edwards Glass","0000100196","248.00","R&M - Departmental planned (external)","130130511","28/10/2016","Facilities Management","Caretakers Community Centre","R2001"
"Wolverhampton City Council","http://opendatacommunities.org/id/metropolitan-district-council/wolverhampton","J Edwards Glass","0000100437","234.00","R&M - Departmental planned (external)","130139511","14/10/2016","Maintenance Programme","Centralised R&M","R2001"
"Wolverhampton City Council","http://opendatacommunities.org/id/metropolitan-district-council/wolverhampton","J Edwards Glass","0000100436","448.00","R&M - Departmental planned (external)","130139510","14/10/2016","Maintenance Programme","Centralised R&M","R2001"
"Wolverhampton City Council","http://opendatacommunities.org/id/metropolitan-district-council/wolverhampton","J P Lennard Limited","810642","104.40","Materials","130137862","07/10/2016","Leisure Services","Central Baths","R4007"
"Wolverhampton City Council","http://opendatacommunities.org/id/metropolitan-district-council/wolverhampton","J S Bassi T/A Penn Radio Cars","122","560.00","Client Transport","130141362","19/10/2016","School Planning & Resources","Home to College Transport","R3042"
"Wolverhampton City Council","http://opendatacommunities.org/id/metropolitan-district-council/wolverhampton","J S Bassi T/A Penn Radio Cars","123","732.80","Client Transport","130141365","19/10/2016","School Planning & Resources","Special - Transport","R3042"
"Wolverhampton City Council","http://opendatacommunities.org/id/metropolitan-district-council/wolverhampton","J S Bassi T/A Penn Radio Cars","124","111.00","Client Transport","130141366","19/10/2016","School Planning & Resources","Primary - Transport","R3042"
"Wolverhampton City Council","http://opendatacommunities.org/id/metropolitan-district-council/wolverhampton","Jack Moody Landscaping & Civil Engineering Limited","IN1269","76,547.46","Construction and Conversion","130140149","07/10/2016","","GF - Disposals Programme (Non-Strategic)","C1100"
"Wolverhampton City Council","http://opendatacommunities.org/id/metropolitan-district-council/wolverhampton","Jack Moody Landscaping & Civil Engineering Limited","IN1171","3,280.69","Construction and Conversion","130138429","19/10/2016","","GF - Leisure Centres Enhancement","C1100"
"Wolverhampton City Council","http://opendatacommunities.org/id/metropolitan-district-council/wolverhampton","Jackdaw (Tools) Limited","JV340591","245.35","Equipment - Purchase","190272286","05/10/2016","Fleet Services","Fleet Management","R4000"
"Wolverhampton City Council","http://opendatacommunities.org/id/metropolitan-district-council/wolverhampton","Jackdaw (Tools) Limited","JV340435","0.34","Equipment - Purchase","190272285","05/10/2016","Fleet Services","Fleet Management","R4000"
"Wolverhampton City Council","http://opendatacommunities.org/id/metropolitan-district-council/wolverhampton","Jackdaw (Tools) Limited","JV340866","3.12","Equipment - Purchase","190272287","05/10/2016","Fleet Services","Fleet Management","R4000"
"Wolverhampton City Council","http://opendatacommunities.org/id/metropolitan-district-council/wolverhampton","Jackdaw (Tools) Limited","JV343316","30.87","Equipment - Purchase","190274713","12/10/2016","Fleet Services","Fleet Management","R4000"
"Wolverhampton City Council","http://opendatacommunities.org/id/metropolitan-district-council/wolverhampton","Jackdaw (Tools) Limited","JV342575","15.39","Equipment - Purchase","190274712","12/10/2016","Fleet Services","Fleet Management","R4000"
"Wolverhampton City Council","http://opendatacommunities.org/id/metropolitan-district-council/wolverhampton","Jacobs U.K.Limited","81018000 - 200 - 048","2,153.92","Services - Professional Fees","130139660","26/10/2016","Estates and Valuations","Disposal Costs","R4400"
"Wolverhampton City Council","http://opendatacommunities.org/id/metropolitan-district-council/wolverhampton","Jacobs U.K.Limited","B1018000 - 200 - 041","5,508.50","Construction and Conversion","130139711","26/10/2016","","Bilston Urban Village","C1100"
"Wolverhampton City Council","http://opendatacommunities.org/id/metropolitan-district-council/wolverhampton","Jacobs U.K.Limited","B1018000 - 200 - 038","540.00","Services - Professional Fees","130139710","26/10/2016","Facilities Management","Management of Vacant Properties","R4400"
"Wolverhampton City Council","http://opendatacommunities.org/id/metropolitan-district-council/wolverhampton","Jacobs U.K.Limited","B1018000-200-040","1,111.04","Services - Professional Fees","130139721","26/10/2016","Maintenance Programme","Centralised R&M","R4400"
"Wolverhampton City Council","http://opendatacommunities.org/id/metropolitan-district-council/wolverhampton","Jacobs U.K.Limited","B1018000 200 049","1,016.25","Services - Professional Fees","130139718","26/10/2016","Corporate Asset Management","Strategic Asset Management Team","R4400"
"Wolverhampton City Council","http://opendatacommunities.org/id/metropolitan-district-council/wolverhampton","Jacobs U.K.Limited","B1018000 - 200 - 043","3,159.00","Services - Professional Fees","130139713","26/10/2016","Maintenance Programme","Centralised R&M","R4400"
"Wolverhampton City Council","http://opendatacommunities.org/id/metropolitan-district-council/wolverhampton","Jacobs U.K.Limited","B1018000 - 200 - 045","14,249.81","Services - Professional Fees","130139715","26/10/2016","Maintenance Programme","Centralised R&M","R4400"
"Wolverhampton City Council","http://opendatacommunities.org/id/metropolitan-district-council/wolverhampton","Jacobs U.K.Limited","B1018000 - 200 - 047","6,270.10","Services - Professional Fees","130139717","26/10/2016","City Development","City Development  - Core Team","R4400"
"Wolverhampton City Council","http://opendatacommunities.org/id/metropolitan-district-council/wolverhampton","Jacobs U.K.Limited","B1018000 - 200 - 007","398.25","Services - Professional Fees","130139685","26/10/2016","Estates and Valuations","Disposal Costs","R4400"
"Wolverhampton City Council","http://opendatacommunities.org/id/metropolitan-district-council/wolverhampton","Jacobs U.K.Limited","B1018000 - 200 - 005","326.50","Services - Professional Fees","130139683","26/10/2016","Estates and Valuations","Disposal Costs","R4400"
"Wolverhampton City Council","http://opendatacommunities.org/id/metropolitan-district-council/wolverhampton","Jacobs U.K.Limited","B1018000-200-039","480.00","Construction and Conversion","130139720","26/10/2016","","Decent Homes - Stock Improvements","C1100"
"Wolverhampton City Council","http://opendatacommunities.org/id/metropolitan-district-council/wolverhampton","Jacobs U.K.Limited","B1018000 - 200 - 010","1,523.20","Services - Professional Fees","130141052","26/10/2016","Adult Education","Central Costs","R4400"
"Wolverhampton City Council","http://opendatacommunities.org/id/metropolitan-district-council/wolverhampton","Jacobs U.K.Limited","B1018000 - 200 - 036","4,799.56","Services - Professional Fees","130139708","26/10/2016","Capital Programme","Capital programme Team - Wolverhampton Homes","R4400"
"Wolverhampton City Council","http://opendatacommunities.org/id/metropolitan-district-council/wolverhampton","Jacobs U.K.Limited","B1018000 - 200 - 042","1,423.52","Services - Professional Fees","130139712","26/10/2016","Facilities Management","Civic Centre","R4400"
"Wolverhampton City Council","http://opendatacommunities.org/id/metropolitan-district-council/wolverhampton","Jacobs U.K.Limited","B1018000 - 200 - 035","996.66","Construction and Conversion","130139707","26/10/2016","","Structural works","C1100"
"Wolverhampton City Council","http://opendatacommunities.org/id/metropolitan-district-council/wolverhampton","Jacobs U.K.Limited","B1018000 - 200 - 011","1,520.67","Construction and Conversion","130139956","26/10/2016","","Primary Expansion Programme","C1100"
"Wolverhampton City Council","http://opendatacommunities.org/id/metropolitan-district-council/wolverhampton","Jacobs U.K.Limited","B1018000 - 200 - 021","606.91","Services - Professional Fees","130139696","26/10/2016","Facilities Management","Culwell Street Depot","R4400"
"Wolverhampton City Council","http://opendatacommunities.org/id/metropolitan-district-council/wolverhampton","Jacobs U.K.Limited","B1018000 - 200 - 021","606.91","Services - Professional Fees","130139696","26/10/2016","Facilities Management","Hickman Avenue Depot","R4400"
"Wolverhampton City Council","http://opendatacommunities.org/id/metropolitan-district-council/wolverhampton","Jacobs U.K.Limited","B1018000 - 200 - 021","383.31","Services - Professional Fees","130139696","26/10/2016","Facilities Management","Bilston Town Hall","R4400"
"Wolverhampton City Council","http://opendatacommunities.org/id/metropolitan-district-council/wolverhampton","Jacobs U.K.Limited","B1018000 - 200 - 032","1,352.40","Construction and Conversion","130139705","26/10/2016","","Future Spaces","C1100"
"Wolverhampton City Council","http://opendatacommunities.org/id/metropolitan-district-council/wolverhampton","Jacobs U.K.Limited","B1018000 - 200 - 020","729.12","Services - Professional Fees","130139695","26/10/2016","Facilities Management","Management of Vacant Properties","R4400"
"Wolverhampton City Council","http://opendatacommunities.org/id/metropolitan-district-council/wolverhampton","Jacobs U.K.Limited","B1018000 - 200 - 018","2,018.07","Services - Professional Fees","130139693","26/10/2016","Estates and Valuations","Industrial Premises ; General","R4400"
"Wolverhampton City Council","http://opendatacommunities.org/id/metropolitan-district-council/wolverhampton","Jacobs U.K.Limited","81018000 - 200 - 012","272.70","Construction and Conversion","130139658","26/10/2016","","Primary Expansion Programme","C1100"
"Wolverhampton City Council","http://opendatacommunities.org/id/metropolitan-district-council/wolverhampton","Jacobs U.K.Limited","B1018000 - 200 - 003","3,745.18","Construction and Conversion","130139681","26/10/2016","","Primary Expansion Programme","C1100"
"Wolverhampton City Council","http://opendatacommunities.org/id/metropolitan-district-council/wolverhampton","Jacobs U.K.Limited","81018000 - 200 - 034","98.37","Construction and Conversion","130139659","26/10/2016","","Structural works","C1100"
"Wolverhampton City Council","http://opendatacommunities.org/id/metropolitan-district-council/wolverhampton","Jacobs U.K.Limited","B1018000 - 200 - 001","1,820.51","Construction and Conversion","130139679","26/10/2016","","Primary Expansion Programme","C1100"
"Wolverhampton City Council","http://opendatacommunities.org/id/metropolitan-district-council/wolverhampton","Jacobs U.K.Limited","B1018000 - 200 - 006","974.51","Construction and Conversion","130139684","26/10/2016","","Co-Location Programme","C1100"
"Wolverhampton City Council","http://opendatacommunities.org/id/metropolitan-district-council/wolverhampton","Jacobs U.K.Limited","B1018000 - 200 - 013","1,025.25","Services - Professional Fees","130139688","26/10/2016","Capital Programme","Capital programme Team - Wolverhampton Homes","R4400"
"Wolverhampton City Council","http://opendatacommunities.org/id/metropolitan-district-council/wolverhampton","Jacobs U.K.Limited","B1018000 - 200 - 009","394.25","Services - Professional Fees","130139687","26/10/2016","Estates and Valuations","Disposal Costs","R4400"
"Wolverhampton City Council","http://opendatacommunities.org/id/metropolitan-district-council/wolverhampton","Jacobs U.K.Limited","B1018000 - 200 - 008","371.00","Services - Professional Fees","130139686","26/10/2016","Estates and Valuations","Disposal Costs","R4400"
"Wolverhampton City Council","http://opendatacommunities.org/id/metropolitan-district-council/wolverhampton","Jacobs U.K.Limited","B1018000 - 200 - 016","7,181.01","Construction and Conversion","130139691","26/10/2016","","Decent Homes - Stock Improvements","C1100"
"Wolverhampton City Council","http://opendatacommunities.org/id/metropolitan-district-council/wolverhampton","Jacobs U.K.Limited","B1018000 - 200 - 026","8,000.00","Services - Professional Fees","130139700","26/10/2016","Capital Programme","Capital programme Team - Wolverhampton Homes","R4400"
"Wolverhampton City Council","http://opendatacommunities.org/id/metropolitan-district-council/wolverhampton","Jacobs U.K.Limited","B1018000 - 200 - 024","1,319.83","Construction and Conversion","130139698","26/10/2016","","Primary Expansion Programme","C1100"
"Wolverhampton City Council","http://opendatacommunities.org/id/metropolitan-district-council/wolverhampton","Jacobs U.K.Limited","B1018000 - 200 - 027","1,300.00","Construction and Conversion","130139701","26/10/2016","","Primary Expansion Programme","C1100"
"Wolverhampton City Council","http://opendatacommunities.org/id/metropolitan-district-council/wolverhampton","Jacobs U.K.Limited","B1018000 - 200 - 023","786.96","Services - Professional Fees","130139697","26/10/2016","School Planning & Resources","Building Schools for the Future (BSF)","R4400"
"Wolverhampton City Council","http://opendatacommunities.org/id/metropolitan-district-council/wolverhampton","Jacobs U.K.Limited","B1018000 - 200 - 017","29,311.20","Construction and Conversion","130139692","26/10/2016","","Decent Homes - Stock Improvements","C1100"
"Wolverhampton City Council","http://opendatacommunities.org/id/metropolitan-district-council/wolverhampton","James Lister & Sons Limited","0100/ 02634976","28.98","Protective Clothing","130138903","05/10/2016","Highways Maintenance","Patching","R4200"
"Wolverhampton City Council","http://opendatacommunities.org/id/metropolitan-district-council/wolverhampton","James Lister & Sons Limited","0100/ 02634984","492.00","Protective Clothing","130138910","05/10/2016","Environmental Maintenance","Ground Maintenance East","R4200"
"Wolverhampton City Council","http://opendatacommunities.org/id/metropolitan-district-council/wolverhampton","James Lister & Sons Limited","0100/ 02634985","32.32","Protective Clothing","130138911","05/10/2016","Facilities Management","Civic Centre","R4200"
"Wolverhampton City Council","http://opendatacommunities.org/id/metropolitan-district-council/wolverhampton","James Lister & Sons Limited","0100/ 02618999","314.64","Protective Clothing","130131554","05/10/2016","Environmental Maintenance","Ground Maintenance East","R4200"
"Wolverhampton City Council","http://opendatacommunities.org/id/metropolitan-district-council/wolverhampton","James Lister & Sons Limited","0100/ 02634981","57.96","Protective Clothing","130138908","05/10/2016","Highways Maintenance","Patching","R4200"
"Wolverhampton City Council","http://opendatacommunities.org/id/metropolitan-district-council/wolverhampton","James Lister & Sons Limited","0100/ 02634987","57.96","Protective Clothing","130138913","05/10/2016","Highways Maintenance","Patching","R4200"
"Wolverhampton City Council","http://opendatacommunities.org/id/metropolitan-district-council/wolverhampton","James Lister & Sons Limited","0100/ 02634979","497.10","Protective Clothing","130138906","05/10/2016","Highways Maintenance","Patching","R4200"
"Wolverhampton City Council","http://opendatacommunities.org/id/metropolitan-district-council/wolverhampton","James Lister & Sons Limited","0100/ 02634980","26.92","Protective Clothing","130138907","05/10/2016","Environmental Maintenance","Parks - Ranger Service","R4200"
"Wolverhampton City Council","http://opendatacommunities.org/id/metropolitan-district-council/wolverhampton","James Lister & Sons Limited","0100/ 02634990","79.75","Protective Clothing","130138916","05/10/2016","Cleaning","Cleaning of Buildings - General","R4200"
"Wolverhampton City Council","http://opendatacommunities.org/id/metropolitan-district-council/wolverhampton","James Lister & Sons Limited","0100/ 02632090","58.00","Protective Clothing","130137778","05/10/2016","Bereavement Services","Crematorium","R4200"
"Wolverhampton City Council","http://opendatacommunities.org/id/metropolitan-district-council/wolverhampton","James Lister & Sons Limited","0100/ 02634989","654.50","Protective Clothing","130138915","05/10/2016","Catering","Education Catering - General Overheads","R4200"
"Wolverhampton City Council","http://opendatacommunities.org/id/metropolitan-district-council/wolverhampton","James Lister & Sons Limited","0100/ 02634991","22.69","Protective Clothing","130138917","05/10/2016","Public Protection","EHTS Operational Costs","R4200"
"Wolverhampton City Council","http://opendatacommunities.org/id/metropolitan-district-council/wolverhampton","James Lister & Sons Limited","0100/ 02634975","58.00","Protective Clothing","130138902","05/10/2016","Highways Maintenance","Patching","R4200"
"Wolverhampton City Council","http://opendatacommunities.org/id/metropolitan-district-council/wolverhampton","James Lister & Sons Limited","0100/ 02634986","117.13","Clothing / Uniforms","130138912","05/10/2016","Customer Services","City Direct","R4201"
"Wolverhampton City Council","http://opendatacommunities.org/id/metropolitan-district-council/wolverhampton","James Lister & Sons Limited","0100/ 02634977","29.94","Cleaning Supplies and Materials","130138904","05/10/2016","Independent Living Service","Independent Living Service","R2705"
"Wolverhampton City Council","http://opendatacommunities.org/id/metropolitan-district-council/wolverhampton","James Lister & Sons Limited","240/02630674","205.80","Equipment - Purchase","190273395","07/10/2016","Fleet Services","Fleet Management","R4000"
"Wolverhampton City Council","http://opendatacommunities.org/id/metropolitan-district-council/wolverhampton","James Lister & Sons Limited","0100/ 02636774","108.30","Protective Clothing","130139521","07/10/2016","ICTS","Strategic ICTS (ICT Service Budget)","R4200"
"Wolverhampton City Council","http://opendatacommunities.org/id/metropolitan-district-council/wolverhampton","James Lister & Sons Limited","0100/ 02625480","9.85","Protective Clothing","130134774","07/10/2016","Cleaning","Cleaning of Buildings - General","R4200"
"Wolverhampton City Council","http://opendatacommunities.org/id/metropolitan-district-council/wolverhampton","James Lister & Sons Limited","0100/ 02639247","369.90","Protective Clothing","130140883","26/10/2016","ICTS","Strategic ICTS (ICT Service Budget)","R4200"
"Wolverhampton City Council","http://opendatacommunities.org/id/metropolitan-district-council/wolverhampton","James Lister & Sons Limited","0100/ 02639264","27.50","Protective Clothing","130140898","26/10/2016","ICTS","Strategic ICTS (ICT Service Budget)","R4200"
"Wolverhampton City Council","http://opendatacommunities.org/id/metropolitan-district-council/wolverhampton","James Lister & Sons Limited","0100/ 02641907","27.50","Protective Clothing","130141859","26/10/2016","ICTS","Strategic ICTS (ICT Service Budget)","R4200"
"Wolverhampton City Council","http://opendatacommunities.org/id/metropolitan-district-council/wolverhampton","James Lister & Sons Limited","0100/ 02640782","249.33","Equipment - R & M","130141853","26/10/2016","Visitor Economy","Civic Halls Non-Direct Event Management Account","R4003"
"Wolverhampton City Council","http://opendatacommunities.org/id/metropolitan-district-council/wolverhampton","James Lister & Sons Limited","0100/ 02641901","28.44","Protective Clothing","130141854","26/10/2016","Highways Maintenance","Patching","R4200"
"Wolverhampton City Council","http://opendatacommunities.org/id/metropolitan-district-council/wolverhampton","James Lister & Sons Limited","0100/ 02540946","37.50","Protective Clothing","130140747","26/10/2016","Housing","Private Sector Housing","R4200"
"Wolverhampton City Council","http://opendatacommunities.org/id/metropolitan-district-council/wolverhampton","James Lister & Sons Limited","0100/ 02540946","-37.50","Protective Clothing","130140747","26/10/2016","Housing","Private Sector Housing","R4200"
"Wolverhampton City Council","http://opendatacommunities.org/id/metropolitan-district-council/wolverhampton","James Lister & Sons Limited","0100/ 02540946","37.50","Protective Clothing","130140747","26/10/2016","Housing","Private Sector Housing","R4200"
"Wolverhampton City Council","http://opendatacommunities.org/id/metropolitan-district-council/wolverhampton","James Lister & Sons Limited","0100/ 02641921","68.04","Protective Clothing","130141873","26/10/2016","Highways Maintenance","Patching","R4200"
"Wolverhampton City Council","http://opendatacommunities.org/id/metropolitan-district-council/wolverhampton","James Lister & Sons Limited","0100/ 02641937","108.00","Protective Clothing","130141888","26/10/2016","Highways Maintenance","Patching","R4200"
"Wolverhampton City Council","http://opendatacommunities.org/id/metropolitan-district-council/wolverhampton","James Lister & Sons Limited","0100/ 02515173","120.00","Protective Clothing","130140746","26/10/2016","Facilities Management","Civic Centre","R4200"
"Wolverhampton City Council","http://opendatacommunities.org/id/metropolitan-district-council/wolverhampton","James Lister & Sons Limited","0100/ 02625477","196.65","Protective Clothing","130134771","26/10/2016","Environmental Maintenance","Ground Maintenance West","R4200"
"Wolverhampton City Council","http://opendatacommunities.org/id/metropolitan-district-council/wolverhampton","James Lister & Sons Limited","0100/ 02641927","26.95","Protective Clothing","130141878","26/10/2016","Environmental Maintenance","Ground Maintenance West","R4200"
"Wolverhampton City Council","http://opendatacommunities.org/id/metropolitan-district-council/wolverhampton","James Lister & Sons Limited","0100/ 02641925","256.10","Protective Clothing","130141876","26/10/2016","Environmental Maintenance","Parks - Ranger Service","R4200"
"Wolverhampton City Council","http://opendatacommunities.org/id/metropolitan-district-council/wolverhampton","James Lister & Sons Limited","0100/ 02641934","28.50","Protective Clothing","130141885","26/10/2016","ICTS","Strategic ICTS (ICT Service Budget)","R4200"
"Wolverhampton City Council","http://opendatacommunities.org/id/metropolitan-district-council/wolverhampton","James Lister & Sons Limited","0100/ 02639265","5.25","Protective Clothing","130140899","26/10/2016","ICTS","Strategic ICTS (ICT Service Budget)","R4200"
"Wolverhampton City Council","http://opendatacommunities.org/id/metropolitan-district-council/wolverhampton","James Lister & Sons Limited","0100/ 02639258","26.95","Protective Clothing","130140892","26/10/2016","ICTS","Strategic ICTS (ICT Service Budget)","R4200"
"Wolverhampton City Council","http://opendatacommunities.org/id/metropolitan-district-council/wolverhampton","James Lister & Sons Limited","0100/ 02641905","59.95","Protective Clothing","130141858","26/10/2016","Catering","Education Catering - General Overheads","R4200"
"Wolverhampton City Council","http://opendatacommunities.org/id/metropolitan-district-council/wolverhampton","James Lister & Sons Limited","0100/ 02641919","27.50","Protective Clothing","130141871","26/10/2016","Parking Services","School Crossing Patrol","R4200"
"Wolverhampton City Council","http://opendatacommunities.org/id/metropolitan-district-council/wolverhampton","James Lister & Sons Limited","0100/ 02641919","27.50","Protective Clothing","130141871","26/10/2016","Parking Services","Cycling Schemes - Training West Midlands","R4200"
"Wolverhampton City Council","http://opendatacommunities.org/id/metropolitan-district-council/wolverhampton","James Lister & Sons Limited","0100/ 02641917","340.16","Protective Clothing","130141869","26/10/2016","Cleaning","Cleaning of Buildings - General","R4200"
"Wolverhampton City Council","http://opendatacommunities.org/id/metropolitan-district-council/wolverhampton","James Lister & Sons Limited","0100/ 02641914","228.00","Protective Clothing","130141866","26/10/2016","Cleaning","Cleaning of Buildings - General","R4200"
"Wolverhampton City Council","http://opendatacommunities.org/id/metropolitan-district-council/wolverhampton","James Lister & Sons Limited","0100/ 02641923","223.55","Protective Clothing","130141875","26/10/2016","Catering","Education Catering - General Overheads","R4200"
"Wolverhampton City Council","http://opendatacommunities.org/id/metropolitan-district-council/wolverhampton","James Lister & Sons Limited","0100/ 02641920","97.95","Protective Clothing","130141872","26/10/2016","Parking Services","Parking Enforcement","R4200"
"Wolverhampton City Council","http://opendatacommunities.org/id/metropolitan-district-council/wolverhampton","James Lister & Sons Limited","0100/ 02641930","46.53","Protective Clothing","130141881","26/10/2016","Parking Services","Parking Enforcement","R4200"
"Wolverhampton City Council","http://opendatacommunities.org/id/metropolitan-district-council/wolverhampton","James Lister & Sons Limited","0100/ 02641936","57.00","Protective Clothing","130141887","26/10/2016","Cleaning","Cleaning of Buildings - General","R4200"
"Wolverhampton City Council","http://opendatacommunities.org/id/metropolitan-district-council/wolverhampton","James Lister & Sons Limited","0100/ 02641919","82.60","Protective Clothing","130141871","26/10/2016","Parking Services","Car Parks Operational Staff","R4200"
"Wolverhampton City Council","http://opendatacommunities.org/id/metropolitan-district-council/wolverhampton","James Lister & Sons Limited","0100/ 02641928","27.50","Protective Clothing","130141879","26/10/2016","Parking Services","Cycling Schemes - Training West Midlands","R4200"
"Wolverhampton City Council","http://opendatacommunities.org/id/metropolitan-district-council/wolverhampton","James Lister & Sons Limited","0100/ 02567534","79.50","Equipment - R & M","130141115","26/10/2016","Independent Living Service","Independent Living Service","R4003"
"Wolverhampton City Council","http://opendatacommunities.org/id/metropolitan-district-council/wolverhampton","James Lister & Sons Limited","0100/02598237","115.35","Equipment - R & M","130141120","26/10/2016","Independent Living Service","Independent Living Service","R4003"
"Wolverhampton City Council","http://opendatacommunities.org/id/metropolitan-district-council/wolverhampton","James Lister & Sons Limited","0100/ 02641903","136.00","Protective Clothing","130141856","26/10/2016","Fleet Services","Passenger Transport - General","R4200"
"Wolverhampton City Council","http://opendatacommunities.org/id/metropolitan-district-council/wolverhampton","James Lister & Sons Limited","0100/ 02641929","20.01","Protective Clothing","130141880","26/10/2016","Fleet Services","Passenger Transport - General","R4200"
"Wolverhampton City Council","http://opendatacommunities.org/id/metropolitan-district-council/wolverhampton","James Lister & Sons Limited","0100/ 02641933","36.19","Protective Clothing","130141884","26/10/2016","Fleet Services","Passenger Transport - General","R4200"
"Wolverhampton City Council","http://opendatacommunities.org/id/metropolitan-district-council/wolverhampton","James Lister & Sons Limited","0100/ 02579154","215.45","Equipment - R & M","130141116","26/10/2016","Independent Living Service","Independent Living Service","R4003"
"Wolverhampton City Council","http://opendatacommunities.org/id/metropolitan-district-council/wolverhampton","James Lister & Sons Limited","0100/02567535","91.06","Equipment - R & M","130141117","26/10/2016","Independent Living Service","Independent Living Service","R4003"
"Wolverhampton City Council","http://opendatacommunities.org/id/metropolitan-district-council/wolverhampton","James Lister & Sons Limited","0100/ 02641932","65.18","Protective Clothing","130141883","26/10/2016","School Planning & Resources","Special - Transport","R4200"
"Wolverhampton City Council","http://opendatacommunities.org/id/metropolitan-district-council/wolverhampton","James Lister & Sons Limited","0100/ 02636768","-9.10","Protective Clothing","130139515","12/10/2016","Parking Services","Car Parks Operational Staff","R4200"
"Wolverhampton City Council","http://opendatacommunities.org/id/metropolitan-district-council/wolverhampton","James Lister & Sons Limited","0100/ 02636769","-22.95","Protective Clothing","130139516","12/10/2016","Parking Services","Car Parks Operational Staff","R4200"
"Wolverhampton City Council","http://opendatacommunities.org/id/metropolitan-district-council/wolverhampton","James Lister & Sons Limited","0100/ 02608182","321.91","Protective Clothing","130126601","12/10/2016","Catering","Education Catering - General Overheads","R4200"
"Wolverhampton City Council","http://opendatacommunities.org/id/metropolitan-district-council/wolverhampton","James Lister & Sons Limited","0100/ 02636772","30.40","Protective Clothing","130139519","12/10/2016","Environmental Maintenance","Ground Maintenance West","R4200"
"Wolverhampton City Council","http://opendatacommunities.org/id/metropolitan-district-council/wolverhampton","James Lister & Sons Limited","0100/ 02636772","-30.40","Protective Clothing","130139519","12/10/2016","Environmental Maintenance","Ground Maintenance West","R4200"
"Wolverhampton City Council","http://opendatacommunities.org/id/metropolitan-district-council/wolverhampton","James Lister & Sons Limited","0100/ 02636772","30.40","Protective Clothing","130139519","12/10/2016","Environmental Maintenance","Ground Maintenance West","R4200"
"Wolverhampton City Council","http://opendatacommunities.org/id/metropolitan-district-council/wolverhampton","James Lister & Sons Limited","0100/ 02634978","147.00","Protective Clothing","130138905","12/10/2016","Environmental Maintenance","Ground Maintenance East","R4200"
"Wolverhampton City Council","http://opendatacommunities.org/id/metropolitan-district-council/wolverhampton","James Lister & Sons Limited","240/02633947","131.36","Equipment - Purchase","190274671","12/10/2016","Fleet Services","Fleet Management","R4000"
"Wolverhampton City Council","http://opendatacommunities.org/id/metropolitan-district-council/wolverhampton","James Lister & Sons Limited","240/02633950","117.22","Equipment - Purchase","190274674","12/10/2016","Fleet Services","Fleet Management","R4000"
"Wolverhampton City Council","http://opendatacommunities.org/id/metropolitan-district-council/wolverhampton","James Lister & Sons Limited","240/02633952","117.22","Equipment - Purchase","190274675","12/10/2016","Fleet Services","Fleet Management","R4000"
"Wolverhampton City Council","http://opendatacommunities.org/id/metropolitan-district-council/wolverhampton","James Lister & Sons Limited","0100/ 02641926","66.84","Protective Clothing","130141877","21/10/2016","Catering","Education Catering - General Overheads","R4200"
"Wolverhampton City Council","http://opendatacommunities.org/id/metropolitan-district-council/wolverhampton","James Lister & Sons Limited","0100/ 02641915","49.25","Protective Clothing","130141867","21/10/2016","Cleaning","Cleaning of Buildings - General","R4200"
"Wolverhampton City Council","http://opendatacommunities.org/id/metropolitan-district-council/wolverhampton","James Lister & Sons Limited","0100/ 02641922","35.63","Protective Clothing","130141874","21/10/2016","Independent Living Service","Independent Living Service","R4200"
"Wolverhampton City Council","http://opendatacommunities.org/id/metropolitan-district-council/wolverhampton","James Lister & Sons Limited","0100/ 02641913","7.66","Protective Clothing","130141865","21/10/2016","Catering","Education Catering - General Overheads","R4200"
"Wolverhampton City Council","http://opendatacommunities.org/id/metropolitan-district-council/wolverhampton","James Lister & Sons Limited","240/02633951","75.10","Equipment - Purchase","190277644","21/10/2016","Fleet Services","Fleet Management","R4000"
"Wolverhampton City Council","http://opendatacommunities.org/id/metropolitan-district-council/wolverhampton","James Lister & Sons Limited","0100/ 02641912","22.98","Protective Clothing","130141864","21/10/2016","Catering","Education Catering - General Overheads","R4200"
"Wolverhampton City Council","http://opendatacommunities.org/id/metropolitan-district-council/wolverhampton","James Lister & Sons Limited","0100/ 02641918","213.20","Protective Clothing","130141870","21/10/2016","Cleaning","Cleaning of Buildings - General","R4200"
"Wolverhampton City Council","http://opendatacommunities.org/id/metropolitan-district-council/wolverhampton","James Lister & Sons Limited","0100/ 02641916","323.40","Protective Clothing","130141868","21/10/2016","Catering","Education Catering - General Overheads","R4200"
"Wolverhampton City Council","http://opendatacommunities.org/id/metropolitan-district-council/wolverhampton","James Lister & Sons Limited","0100/02600116","60.00","Equipment - R & M","130141121","21/10/2016","Independent Living Service","Independent Living Service","R4003"
"Wolverhampton City Council","http://opendatacommunities.org/id/metropolitan-district-council/wolverhampton","James Lister & Sons Limited","0100/ 02636771","669.25","Protective Clothing","130139518","12/10/2016","Environmental Maintenance","Ground Maintenance East","R4200"
"Wolverhampton City Council","http://opendatacommunities.org/id/metropolitan-district-council/wolverhampton","James Lister & Sons Limited","240/02633948","97.38","Equipment - Purchase","190274672","12/10/2016","Fleet Services","Fleet Management","R4000"
"Wolverhampton City Council","http://opendatacommunities.org/id/metropolitan-district-council/wolverhampton","James Lister & Sons Limited","240/02633949","450.04","Equipment - Purchase","190274673","12/10/2016","Fleet Services","Fleet Management","R4000"
"Wolverhampton City Council","http://opendatacommunities.org/id/metropolitan-district-council/wolverhampton","James Lister & Sons Limited","100/02633944","15.28","Equipment - Purchase","190274648","12/10/2016","Fleet Services","Fleet Management","R4000"
"Wolverhampton City Council","http://opendatacommunities.org/id/metropolitan-district-council/wolverhampton","James Lister & Sons Limited","0100/ 02634983","9.10","Protective Clothing","130138909","12/10/2016","Parking Services","Car Parks Operational Staff","R4200"
"Wolverhampton City Council","http://opendatacommunities.org/id/metropolitan-district-council/wolverhampton","James Lister & Sons Limited","0100/ 02639269","53.90","Protective Clothing","130140903","19/10/2016","Environmental Maintenance","Ground Maintenance East","R4200"
"Wolverhampton City Council","http://opendatacommunities.org/id/metropolitan-district-council/wolverhampton","James Lister & Sons Limited","0100/ 02639256","107.80","Protective Clothing","130140890","19/10/2016","Environmental Maintenance","Ground Maintenance East","R4200"
"Wolverhampton City Council","http://opendatacommunities.org/id/metropolitan-district-council/wolverhampton","James Lister & Sons Limited","0100/ 02639260","55.00","Protective Clothing","130140894","19/10/2016","Environmental Maintenance","Parks - Ranger Service","R4200"
"Wolverhampton City Council","http://opendatacommunities.org/id/metropolitan-district-council/wolverhampton","James Lister & Sons Limited","0100/ 02557244","23.28","Cleaning Supplies and Materials","130141114","19/10/2016","Leisure Services","WV Active Catering","R2705"
"Wolverhampton City Council","http://opendatacommunities.org/id/metropolitan-district-council/wolverhampton","James Lister & Sons Limited","0100/02586377","31.56","Cleaning Supplies and Materials","130141119","19/10/2016","Leisure Services","WV Active Catering","R2705"
"Wolverhampton City Council","http://opendatacommunities.org/id/metropolitan-district-council/wolverhampton","James Lister & Sons Limited","0100/ 02639259","26.95","Protective Clothing","130140893","19/10/2016","Highways Maintenance","Patching","R4200"
"Wolverhampton City Council","http://opendatacommunities.org/id/metropolitan-district-council/wolverhampton","James Lister & Sons Limited","0100/ 02639267","53.90","Protective Clothing","130140901","19/10/2016","Environmental Maintenance","Ground Maintenance East","R4200"
"Wolverhampton City Council","http://opendatacommunities.org/id/metropolitan-district-council/wolverhampton","James Lister & Sons Limited","0100/ 02639268","53.90","Protective Clothing","130140902","19/10/2016","Environmental Maintenance","Ground Maintenance East","R4200"
"Wolverhampton City Council","http://opendatacommunities.org/id/metropolitan-district-council/wolverhampton","James Lister & Sons Limited","0100/ 02639263","4.18","Protective Clothing","130140897","19/10/2016","Highways Maintenance","Patching","R4200"
"Wolverhampton City Council","http://opendatacommunities.org/id/metropolitan-district-council/wolverhampton","James Lister & Sons Limited","0100/ 02639262","45.98","Protective Clothing","130140896","19/10/2016","Highways Maintenance","Patching","R4200"
"Wolverhampton City Council","http://opendatacommunities.org/id/metropolitan-district-council/wolverhampton","James Lister & Sons Limited","0100/ 02639253","161.70","Protective Clothing","130140888","19/10/2016","Environmental Maintenance","Ground Maintenance East","R4200"
"Wolverhampton City Council","http://opendatacommunities.org/id/metropolitan-district-council/wolverhampton","James Lister & Sons Limited","0100/ 02639249","58.50","Materials","130140884","19/10/2016","Facilities Management","Civic Centre","R4007"
"Wolverhampton City Council","http://opendatacommunities.org/id/metropolitan-district-council/wolverhampton","James Lister & Sons Limited","0100/ 02639270","115.54","Protective Clothing","130140904","19/10/2016","Facilities Management","Civic Centre","R4200"
"Wolverhampton City Council","http://opendatacommunities.org/id/metropolitan-district-council/wolverhampton","James Lister & Sons Limited","0100/ 02636770","29.25","Materials","130139517","19/10/2016","Facilities Management","Civic Centre","R4007"
"Wolverhampton City Council","http://opendatacommunities.org/id/metropolitan-district-council/wolverhampton","James Lister & Sons Limited","0100/ 02623510","69.28","Protective Clothing","130133907","28/10/2016","Environmental Maintenance","Ground Maintenance West","R4200"
"Wolverhampton City Council","http://opendatacommunities.org/id/metropolitan-district-council/wolverhampton","James Lister & Sons Limited","0100/ 02639257","80.85","Protective Clothing","130140891","28/10/2016","Environmental Maintenance","Ground Maintenance West","R4200"
"Wolverhampton City Council","http://opendatacommunities.org/id/metropolitan-district-council/wolverhampton","James Lister & Sons Limited","0100/ 02641908","53.90","Protective Clothing","130141860","28/10/2016","Environmental Maintenance","Ground Maintenance West","R4200"
"Wolverhampton City Council","http://opendatacommunities.org/id/metropolitan-district-council/wolverhampton","James Lister & Sons Limited","240/02633946","148.12","Equipment - Purchase","190275276","14/10/2016","Fleet Services","Fleet Management","R4000"
"Wolverhampton City Council","http://opendatacommunities.org/id/metropolitan-district-council/wolverhampton","James Lister & Sons Limited","240/02633945","99.27","Equipment - Purchase","190275275","14/10/2016","Fleet Services","Fleet Management","R4000"
"Wolverhampton City Council","http://opendatacommunities.org/id/metropolitan-district-council/wolverhampton","James Lister & Sons Limited","0100/ 02572906","41.79","Equipment - R & M","130140748","14/10/2016","Independent Living Service","Independent Living Service","R4003"
"Wolverhampton City Council","http://opendatacommunities.org/id/metropolitan-district-council/wolverhampton","James Lister & Sons Limited","0100/ 02639250","222.14","Protective Clothing","130140885","14/10/2016","Catering","Education Catering - General Overheads","R4200"
"Wolverhampton City Council","http://opendatacommunities.org/id/metropolitan-district-council/wolverhampton","James Lister & Sons Limited","0100/ 02639252","26.95","Protective Clothing","130140887","14/10/2016","Markets","Wholesale Market Facilities Management","R4200"
"Wolverhampton City Council","http://opendatacommunities.org/id/metropolitan-district-council/wolverhampton","James Lister & Sons Limited","0100/ 02639266","12.50","Protective Clothing","130140900","14/10/2016","Catering","Education Catering - General Overheads","R4200"
"Wolverhampton City Council","http://opendatacommunities.org/id/metropolitan-district-council/wolverhampton","James Lister & Sons Limited","0100/ 02639254","1,001.04","Protective Clothing","130140889","14/10/2016","Catering","Education Catering - General Overheads","R4200"
"Wolverhampton City Council","http://opendatacommunities.org/id/metropolitan-district-council/wolverhampton","Jct Consultancy Limited","Ml 995","345.00","Computing - Purchase of Hardware","130141086","14/10/2016","Transportation","Transportation General","R4530"
"Wolverhampton City Council","http://opendatacommunities.org/id/metropolitan-district-council/wolverhampton","Jenx Limited","201961","1,645.60","Equipment - Purchase","130137803","07/10/2016","Independent Living Service","Independent Living Service","R4000"
"Wolverhampton City Council","http://opendatacommunities.org/id/metropolitan-district-council/wolverhampton","Jenx Limited","202030","2,028.70","Equipment - Purchase","130138507","14/10/2016","Independent Living Service","Independent Living Service","R4000"
"Wolverhampton City Council","http://opendatacommunities.org/id/metropolitan-district-council/wolverhampton","JLA Limited","OP/1931102","140.00","Service Charges","130139765","21/10/2016","Learning Disability Provider","Ernest Bold Court","R2205"
"Wolverhampton City Council","http://opendatacommunities.org/id/metropolitan-district-council/wolverhampton","Johal Dairies Limited","778357","-0.68","Provisions (Not for resale)","130137082","05/10/2016","Older People Provider Services","Blakenhall Resource Centre","R4101"
"Wolverhampton City Council","http://opendatacommunities.org/id/metropolitan-district-council/wolverhampton","Johal Dairies Limited","5620082016","877.52","Provisions (Resale)","130139158","05/10/2016","Catering","Civic Centre Catering","R4102"
"Wolverhampton City Council","http://opendatacommunities.org/id/metropolitan-district-council/wolverhampton","Johal Dairies Limited","778193","23.22","Provisions (Not for resale)","130139608","07/10/2016","Older People Provider Services","Blakenhall Resource Centre","R4101"
"Wolverhampton City Council","http://opendatacommunities.org/id/metropolitan-district-council/wolverhampton","Johal Dairies Limited","5466082016","138.31","Provisions (Not for resale)","130138825","26/10/2016","Leisure Services","WV Active Catering","R4101"
"Wolverhampton City Council","http://opendatacommunities.org/id/metropolitan-district-council/wolverhampton","Johal Dairies Limited","6525082016","93.53","Provisions (Not for resale)","130138827","26/10/2016","Leisure Services","WV Active Catering","R4101"
"Wolverhampton City Council","http://opendatacommunities.org/id/metropolitan-district-council/wolverhampton","Johal Dairies Limited","795364","21.19","Provisions (Resale)","130139640","26/10/2016","Learning Disability Provider","Duke Street Bungalows","R4102"
"Wolverhampton City Council","http://opendatacommunities.org/id/metropolitan-district-council/wolverhampton","Johal Dairies Limited","795366","36.24","Provisions (Resale)","130139642","26/10/2016","Learning Disability Provider","Duke Street Bungalows","R4102"
"Wolverhampton City Council","http://opendatacommunities.org/id/metropolitan-district-council/wolverhampton","Johal Dairies Limited","795365","25.19","Provisions (Resale)","130139641","26/10/2016","Learning Disability Provider","Duke Street Bungalows","R4102"
"Wolverhampton City Council","http://opendatacommunities.org/id/metropolitan-district-council/wolverhampton","Johal Dairies Limited","795359","32.63","Provisions (Not for resale)","130139636","26/10/2016","Visitor Economy","Art Gallery Tea Room","R4101"
"Wolverhampton City Council","http://opendatacommunities.org/id/metropolitan-district-council/wolverhampton","Johal Dairies Limited","795360","83.89","Provisions (Not for resale)","130139637","26/10/2016","Visitor Economy","Bantock - Tea Rooms","R4101"
"Wolverhampton City Council","http://opendatacommunities.org/id/metropolitan-district-council/wolverhampton","Johal Dairies Limited","795348","128.07","Provisions (Resale)","130139635","26/10/2016","Older People Provider Services","Bradley Lodge Resource Centre","R4102"
"Wolverhampton City Council","http://opendatacommunities.org/id/metropolitan-district-council/wolverhampton","Johal Dairies Limited","778189","16.12","Provisions (Resale)","130139605","12/10/2016","Learning Disability Provider","Duke Street Bungalows","R4102"
"Wolverhampton City Council","http://opendatacommunities.org/id/metropolitan-district-council/wolverhampton","Johal Dairies Limited","778191","45.07","Provisions (Resale)","130139607","12/10/2016","Learning Disability Provider","Duke Street Bungalows","R4102"
"Wolverhampton City Council","http://opendatacommunities.org/id/metropolitan-district-council/wolverhampton","Johal Dairies Limited","781999","24.67","Provisions (Resale)","130139614","12/10/2016","Learning Disability Provider","Duke Street Bungalows","R4102"
"Wolverhampton City Council","http://opendatacommunities.org/id/metropolitan-district-council/wolverhampton","Johal Dairies Limited","781998","18.82","Provisions (Resale)","130139613","12/10/2016","Learning Disability Provider","Duke Street Bungalows","R4102"
"Wolverhampton City Council","http://opendatacommunities.org/id/metropolitan-district-council/wolverhampton","Johal Dairies Limited","786326","25.19","Provisions (Resale)","130139623","12/10/2016","Learning Disability Provider","Duke Street Bungalows","R4102"
"Wolverhampton City Council","http://opendatacommunities.org/id/metropolitan-district-council/wolverhampton","Johal Dairies Limited","786327","36.24","Provisions (Resale)","130139624","12/10/2016","Learning Disability Provider","Duke Street Bungalows","R4102"
"Wolverhampton City Council","http://opendatacommunities.org/id/metropolitan-district-council/wolverhampton","Johal Dairies Limited","782000","45.07","Provisions (Resale)","130139615","12/10/2016","Learning Disability Provider","Duke Street Bungalows","R4102"
"Wolverhampton City Council","http://opendatacommunities.org/id/metropolitan-district-council/wolverhampton","Johal Dairies Limited","786325","21.19","Provisions (Resale)","130139622","12/10/2016","Learning Disability Provider","Duke Street Bungalows","R4102"
"Wolverhampton City Council","http://opendatacommunities.org/id/metropolitan-district-council/wolverhampton","Johal Dairies Limited","5620102015","501.48","Provisions (Resale)","130121846","31/10/2016","Catering","Civic Centre Catering","R4102"
"Wolverhampton City Council","http://opendatacommunities.org/id/metropolitan-district-council/wolverhampton","Johal Dairies Limited","778184","17.34","Provisions (Not for resale)","130139601","12/10/2016","Visitor Economy","Art Gallery Tea Room","R4101"
"Wolverhampton City Council","http://opendatacommunities.org/id/metropolitan-district-council/wolverhampton","Johal Dairies Limited","781994","17.19","Provisions (Not for resale)","130139610","12/10/2016","Visitor Economy","Art Gallery Tea Room","R4101"
"Wolverhampton City Council","http://opendatacommunities.org/id/metropolitan-district-council/wolverhampton","Johal Dairies Limited","786320","44.12","Provisions (Not for resale)","130139618","12/10/2016","Visitor Economy","Art Gallery Tea Room","R4101"
"Wolverhampton City Council","http://opendatacommunities.org/id/metropolitan-district-council/wolverhampton","Johal Dairies Limited","778185","108.80","Provisions (Not for resale)","130139602","12/10/2016","Visitor Economy","Bantock - Tea Rooms","R4101"
"Wolverhampton City Council","http://opendatacommunities.org/id/metropolitan-district-council/wolverhampton","Johal Dairies Limited","786321","95.42","Provisions (Not for resale)","130139619","12/10/2016","Visitor Economy","Bantock - Tea Rooms","R4101"
"Wolverhampton City Council","http://opendatacommunities.org/id/metropolitan-district-council/wolverhampton","Johal Dairies Limited","778180","116.97","Provisions (Resale)","130139600","21/10/2016","Older People Provider Services","Bradley Lodge Resource Centre","R4102"
"Wolverhampton City Council","http://opendatacommunities.org/id/metropolitan-district-council/wolverhampton","Johal Dairies Limited","790671","116.97","Provisions (Resale)","130139626","21/10/2016","Older People Provider Services","Bradley Lodge Resource Centre","R4102"
"Wolverhampton City Council","http://opendatacommunities.org/id/metropolitan-district-council/wolverhampton","Johal Dairies Limited","786309","131.97","Provisions (Resale)","130139617","21/10/2016","Older People Provider Services","Bradley Lodge Resource Centre","R4102"
"Wolverhampton City Council","http://opendatacommunities.org/id/metropolitan-district-council/wolverhampton","Johal Dairies Limited","778190","31.33","Provisions (Resale)","130139606","12/10/2016","Learning Disability Provider","Duke Street Bungalows","R4102"
"Wolverhampton City Council","http://opendatacommunities.org/id/metropolitan-district-council/wolverhampton","Johal Dairies Limited","782042","42.06","Provisions (Not for resale)","130139616","28/10/2016","Older People Provider Services","Blakenhall Resource Centre","R4101"
"Wolverhampton City Council","http://opendatacommunities.org/id/metropolitan-district-council/wolverhampton","Johal Dairies Limited","786370","13.86","Provisions (Not for resale)","130139625","28/10/2016","Older People Provider Services","Blakenhall Resource Centre","R4101"
"Wolverhampton City Council","http://opendatacommunities.org/id/metropolitan-district-council/wolverhampton","Johal Dairies Limited","790731","9.44","Provisions (Not for resale)","130139634","28/10/2016","Older People Provider Services","Blakenhall Resource Centre","R4101"
"Wolverhampton City Council","http://opendatacommunities.org/id/metropolitan-district-council/wolverhampton","Johal Dairies Limited","795408","14.76","Provisions (Not for resale)","130139643","28/10/2016","Older People Provider Services","Blakenhall Resource Centre","R4101"
"Wolverhampton City Council","http://opendatacommunities.org/id/metropolitan-district-council/wolverhampton","Johal Dairies Limited","790688","25.19","Provisions (Resale)","130139632","19/10/2016","Learning Disability Provider","Duke Street Bungalows","R4102"
"Wolverhampton City Council","http://opendatacommunities.org/id/metropolitan-district-council/wolverhampton","Johal Dairies Limited","790689","36.24","Provisions (Resale)","130139633","19/10/2016","Learning Disability Provider","Duke Street Bungalows","R4102"
"Wolverhampton City Council","http://opendatacommunities.org/id/metropolitan-district-council/wolverhampton","Johal Dairies Limited","790687","21.19","Provisions (Resale)","130139631","19/10/2016","Learning Disability Provider","Duke Street Bungalows","R4102"
"Wolverhampton City Council","http://opendatacommunities.org/id/metropolitan-district-council/wolverhampton","Johal Dairies Limited","790682","19.64","Provisions (Not for resale)","130139627","19/10/2016","Visitor Economy","Art Gallery Tea Room","R4101"
"Wolverhampton City Council","http://opendatacommunities.org/id/metropolitan-district-council/wolverhampton","Johal Dairies Limited","790683","108.71","Provisions (Not for resale)","130139628","19/10/2016","Visitor Economy","Bantock - Tea Rooms","R4101"
"Wolverhampton City Council","http://opendatacommunities.org/id/metropolitan-district-council/wolverhampton","Johal Dairies Limited","5935082016","249.69","Provisions (Resale)","130139159","19/10/2016","Leisure Services","Bert Williams Leisure Centre Caf�","R4102"
"Wolverhampton City Council","http://opendatacommunities.org/id/metropolitan-district-council/wolverhampton","John Knight Interiors","12174WC008","113.40","Equipment - Purchase","130142147","26/10/2016","Early Intervention","EIP Locality 3","R4000"
"Wolverhampton City Council","http://opendatacommunities.org/id/metropolitan-district-council/wolverhampton","John Maclean & Sons Electrical Limited.","NI031825","1,269.84","Materials","130139486","26/10/2016","Street Lighting","Street Lighting Maintenance","R4007"
"Wolverhampton City Council","http://opendatacommunities.org/id/metropolitan-district-council/wolverhampton","John Maclean & Sons Electrical Limited.","NI031753","996.85","Materials","130138063","12/10/2016","Street Lighting","Street Lighting Maintenance","R4007"
"Wolverhampton City Council","http://opendatacommunities.org/id/metropolitan-district-council/wolverhampton","Johnson Poole & Bloomer Limited","63627","1,598.20","Services - Professional Fees","130140087","19/10/2016","Housing Revenue Account","HRA General","R4400"
"Wolverhampton City Council","http://opendatacommunities.org/id/metropolitan-district-council/wolverhampton","Johnson Poole & Bloomer Limited","63624","2,600.00","Construction and Conversion","130140086","19/10/2016","","Bilston Urban Village","C1100"
"Wolverhampton City Council","http://opendatacommunities.org/id/metropolitan-district-council/wolverhampton","Johnston Sweepers Limited","61426109","90.80","Equipment - Purchase","190272271","05/10/2016","Fleet Services","Fleet Management","R4000"
"Wolverhampton City Council","http://opendatacommunities.org/id/metropolitan-district-council/wolverhampton","Johnston Sweepers Limited","61429626","191.28","Equipment - Purchase","190273398","07/10/2016","Fleet Services","Fleet Management","R4000"
"Wolverhampton City Council","http://opendatacommunities.org/id/metropolitan-district-council/wolverhampton","Johnston Sweepers Limited","61429368","34.21","Equipment - Purchase","190273397","07/10/2016","Fleet Services","Fleet Management","R4000"
"Wolverhampton City Council","http://opendatacommunities.org/id/metropolitan-district-council/wolverhampton","Johnston Sweepers Limited","61429724","178.29","Equipment - Purchase","190273399","07/10/2016","Fleet Services","Fleet Management","R4000"
"Wolverhampton City Council","http://opendatacommunities.org/id/metropolitan-district-council/wolverhampton","Johnston Sweepers Limited","61429724","39.28","Equipment - Purchase","190273399","07/10/2016","Fleet Services","Fleet Management","R4000"
"Wolverhampton City Council","http://opendatacommunities.org/id/metropolitan-district-council/wolverhampton","Johnston Sweepers Limited","61431274","10.46","Equipment - Purchase","190273401","07/10/2016","Fleet Services","Fleet Management","R4000"
"Wolverhampton City Council","http://opendatacommunities.org/id/metropolitan-district-council/wolverhampton","Johnston Sweepers Limited","61431274","44.77","Equipment - Purchase","190273401","07/10/2016","Fleet Services","Fleet Management","R4000"
"Wolverhampton City Council","http://opendatacommunities.org/id/metropolitan-district-council/wolverhampton","Johnston Sweepers Limited","61431274","11.46","Equipment - Purchase","190273401","07/10/2016","Fleet Services","Fleet Management","R4000"
"Wolverhampton City Council","http://opendatacommunities.org/id/metropolitan-district-council/wolverhampton","Johnston Sweepers Limited","61431274","102.06","Equipment - Purchase","190273401","07/10/2016","Fleet Services","Fleet Management","R4000"
"Wolverhampton City Council","http://opendatacommunities.org/id/metropolitan-district-council/wolverhampton","Johnston Sweepers Limited","61431274","64.27","Equipment - Purchase","190273401","07/10/2016","Fleet Services","Fleet Management","R4000"
"Wolverhampton City Council","http://opendatacommunities.org/id/metropolitan-district-council/wolverhampton","Johnston Sweepers Limited","61431202","29.13","Equipment - Purchase","190273400","07/10/2016","Fleet Services","Fleet Management","R4000"
"Wolverhampton City Council","http://opendatacommunities.org/id/metropolitan-district-council/wolverhampton","Johnston Sweepers Limited","61436657","272.12","Equipment - Purchase","190277649","21/10/2016","Fleet Services","Fleet Management","R4000"
"Wolverhampton City Council","http://opendatacommunities.org/id/metropolitan-district-council/wolverhampton","Johnston Sweepers Limited","61436657","21.15","Equipment - Purchase","190277649","21/10/2016","Fleet Services","Fleet Management","R4000"
"Wolverhampton City Council","http://opendatacommunities.org/id/metropolitan-district-council/wolverhampton","Johnston Sweepers Limited","61436657","137.04","Equipment - Purchase","190277649","21/10/2016","Fleet Services","Fleet Management","R4000"
"Wolverhampton City Council","http://opendatacommunities.org/id/metropolitan-district-council/wolverhampton","Johnston Sweepers Limited","61431200","83.37","Equipment - Purchase","190277097","21/10/2016","Fleet Services","Fleet Management","R4000"
"Wolverhampton City Council","http://opendatacommunities.org/id/metropolitan-district-council/wolverhampton","Johnston Sweepers Limited","61433144","44.15","Equipment - Purchase","190274683","12/10/2016","Fleet Services","Fleet Management","R4000"
"Wolverhampton City Council","http://opendatacommunities.org/id/metropolitan-district-council/wolverhampton","Johnston Sweepers Limited","61431201","119.90","Equipment - Purchase","190274682","12/10/2016","Fleet Services","Fleet Management","R4000"
"Wolverhampton City Council","http://opendatacommunities.org/id/metropolitan-district-council/wolverhampton","Johnston Sweepers Limited","61431201","153.88","Equipment - Purchase","190274682","12/10/2016","Fleet Services","Fleet Management","R4000"
"Wolverhampton City Council","http://opendatacommunities.org/id/metropolitan-district-council/wolverhampton","Johnston Sweepers Limited","61433164","22.98","Equipment - Purchase","190274684","12/10/2016","Fleet Services","Fleet Management","R4000"
"Wolverhampton City Council","http://opendatacommunities.org/id/metropolitan-district-council/wolverhampton","Johnston Sweepers Limited","61433164","291.99","Equipment - Purchase","190274684","12/10/2016","Fleet Services","Fleet Management","R4000"
"Wolverhampton City Council","http://opendatacommunities.org/id/metropolitan-district-council/wolverhampton","Johnston Sweepers Limited","61431049","6.09","Equipment - Purchase","190275288","14/10/2016","Fleet Services","Fleet Management","R4000"
"Wolverhampton City Council","http://opendatacommunities.org/id/metropolitan-district-council/wolverhampton","Johnston Sweepers Limited","61431049","27.63","Equipment - Purchase","190275288","14/10/2016","Fleet Services","Fleet Management","R4000"
"Wolverhampton City Council","http://opendatacommunities.org/id/metropolitan-district-council/wolverhampton","Jones Skips (Wolverhampton) Limited","28611","170.00","TPP - Waste Disposal","130138960","05/10/2016","Early Intervention","EIP Locality 1","R5003"
"Wolverhampton City Council","http://opendatacommunities.org/id/metropolitan-district-council/wolverhampton","Jones Skips (Wolverhampton) Limited","28833","7,083.88","TPP - Waste Disposal","130141185","19/10/2016","Environmental Maintenance","Ground Maintenance East","R5003"
"Wolverhampton City Council","http://opendatacommunities.org/id/metropolitan-district-council/wolverhampton","Jones Springs (Eng)Limited","20023","80.00","Equipment - Purchase","190277096","21/10/2016","Fleet Services","Fleet Management","R4000"
"Wolverhampton City Council","http://opendatacommunities.org/id/metropolitan-district-council/wolverhampton","Jones Springs (Eng)Limited","20023","240.00","Equipment - Purchase","190277096","21/10/2016","Fleet Services","Fleet Management","R4000"
"Wolverhampton City Council","http://opendatacommunities.org/id/metropolitan-district-council/wolverhampton","June Emerson","INV058225","16.23","Equipment - R & M","130138432","14/10/2016","Standards and Vulnerable Pupils","Music Support Team","R4003"
"Wolverhampton City Council","http://opendatacommunities.org/id/metropolitan-district-council/wolverhampton","K Sedgebeer","33","1,000.00","Services - Professional Fees","130140780","14/10/2016","Standards and Vulnerable Pupils","Music Support Team","R4400"
"Wolverhampton City Council","http://opendatacommunities.org/id/metropolitan-district-council/wolverhampton","K Sedgebeer","33","-1,000.00","Services - Professional Fees","130140780","14/10/2016","Standards and Vulnerable Pupils","Music Support Team","R4400"
"Wolverhampton City Council","http://opendatacommunities.org/id/metropolitan-district-council/wolverhampton","K Sedgebeer","33","1,000.00","Services - Professional Fees","130140780","14/10/2016","Standards and Vulnerable Pupils","Music Support Team","R4400"
"Wolverhampton City Council","http://opendatacommunities.org/id/metropolitan-district-council/wolverhampton","Kenton Research Limited","OP/I022291","720.00","Computing - Internet","130139034","05/10/2016","ICTS","Strategic ICTS (ICT Service Budget)","R4537"
"Wolverhampton City Council","http://opendatacommunities.org/id/metropolitan-district-council/wolverhampton","Kenton Research Limited","OP/I022292","720.00","Computing - Internet","130139035","05/10/2016","ICTS","Strategic ICTS (ICT Service Budget)","R4537"
"Wolverhampton City Council","http://opendatacommunities.org/id/metropolitan-district-council/wolverhampton","Kenton Research Limited","OP/I022293","1,440.00","Computing - Internet","130139036","05/10/2016","ICTS","Strategic ICTS (ICT Service Budget)","R4537"
"Wolverhampton City Council","http://opendatacommunities.org/id/metropolitan-district-council/wolverhampton","Kenton Research Limited","OP/I022294","492.50","Computing - Internet","130139037","05/10/2016","ICTS","Strategic ICTS (ICT Service Budget)","R4537"
"Wolverhampton City Council","http://opendatacommunities.org/id/metropolitan-district-council/wolverhampton","Kenton Research Limited","OP/I022300","720.00","Computing - Internet","130139042","05/10/2016","ICTS","Strategic ICTS (ICT Service Budget)","R4537"
"Wolverhampton City Council","http://opendatacommunities.org/id/metropolitan-district-council/wolverhampton","Kenton Research Limited","OP/I022299","12,319.89","Computing - Internet","130139041","05/10/2016","ICTS","Strategic ICTS (ICT Service Budget)","R4537"
"Wolverhampton City Council","http://opendatacommunities.org/id/metropolitan-district-council/wolverhampton","Kenton Research Limited","OP/I022297","4,522.50","Computing - Internet","130139040","05/10/2016","ICTS","Strategic ICTS (ICT Service Budget)","R4537"
"Wolverhampton City Council","http://opendatacommunities.org/id/metropolitan-district-council/wolverhampton","Kenton Research Limited","OP/I022296","900.00","Computing - Internet","130139039","05/10/2016","ICTS","Strategic ICTS (ICT Service Budget)","R4537"
"Wolverhampton City Council","http://opendatacommunities.org/id/metropolitan-district-council/wolverhampton","Kenton Research Limited","OP/I022295","720.00","Computing - Internet","130139038","05/10/2016","ICTS","Strategic ICTS (ICT Service Budget)","R4537"
"Wolverhampton City Council","http://opendatacommunities.org/id/metropolitan-district-council/wolverhampton","Kenton Research Limited","OP/1022353","720.00","Computing - Internet","130140171","12/10/2016","ICTS","Strategic ICTS (ICT Service Budget)","R4537"
"Wolverhampton City Council","http://opendatacommunities.org/id/metropolitan-district-council/wolverhampton","Killgerm Chemicals Limited","SI02 - 0121047","558.15","Equipment - Purchase","130139045","26/10/2016","Environmental Maintenance","Pest Control","R4000"
"Wolverhampton City Council","http://opendatacommunities.org/id/metropolitan-district-council/wolverhampton","Kilns & Furnaces Limited","16JUN 061","100.00","Equipment - R & M","130131797","21/10/2016","Adult Education","Creative Studies Delivery Area","R4003"
"Wolverhampton City Council","http://opendatacommunities.org/id/metropolitan-district-council/wolverhampton","Kingfisher Environmental Servs Limited","1609398","70.51","R&M - Departmental planned (internal)","130140938","19/10/2016","Leisure Services","Bert Williams Leisure Centre","R2000"
"Wolverhampton City Council","http://opendatacommunities.org/id/metropolitan-district-council/wolverhampton","Konica Minolta Bus.Solutions(UK)Limited.","1126775388","7,034.98","Photocopier Operating Lease","130138931","21/10/2016","Adult Education","Service Wide","R4304"
"Wolverhampton City Council","http://opendatacommunities.org/id/metropolitan-district-council/wolverhampton","Krcs Group PLC","33258","1,201.00","Services - Professional Fees","130140525","26/10/2016","Mental Health Commissioning","Head Start Wolverhampton","R4400"
"Wolverhampton City Council","http://opendatacommunities.org/id/metropolitan-district-council/wolverhampton","Krcs Group PLC","33104","3,495.00","Computing - Purchase of Hardware","130140523","12/10/2016","School Planning & Resources","Learning Technologies","R4530"
"Wolverhampton City Council","http://opendatacommunities.org/id/metropolitan-district-council/wolverhampton","Krcs Group PLC","33167","18.00","Services - Professional Fees","130140524","19/10/2016","Mental Health Commissioning","Head Start Wolverhampton","R4400"
"Wolverhampton City Council","http://opendatacommunities.org/id/metropolitan-district-council/wolverhampton","Kroy (Europe) Limited","IV227494","746.00","Signage and Labels","130137737","07/10/2016","Licensing","Licensing - H.Carriage/Pr.Hire Vehicles","R4009"
"Wolverhampton City Council","http://opendatacommunities.org/id/metropolitan-district-council/wolverhampton","Langham:A Div�N Of Gordon Ellis & Co","SI - 1140094","779.04","Signage and Labels","130138609","07/10/2016","Independent Living Service","Independent Living Service","R4009"
"Wolverhampton City Council","http://opendatacommunities.org/id/metropolitan-district-council/wolverhampton","Langham:A Div�N Of Gordon Ellis & Co","S1 - 1139990","563.10","Equipment - Purchase","130137743","07/10/2016","Independent Living Service","Independent Living Service","R4000"
"Wolverhampton City Council","http://opendatacommunities.org/id/metropolitan-district-council/wolverhampton","Le Breton Recruitment & Payroll Limited","106000","53.80","Agency Staff","130137790","07/10/2016","Early Intervention","EIP Locality 8","R1100"
"Wolverhampton City Council","http://opendatacommunities.org/id/metropolitan-district-council/wolverhampton","Le Breton Recruitment & Payroll Limited","106095","79.20","Agency Staff","130140613","26/10/2016","Early Intervention","EIP Locality 7","R1100"
"Wolverhampton City Council","http://opendatacommunities.org/id/metropolitan-district-council/wolverhampton","Le Breton Recruitment & Payroll Limited","105994","79.20","Agency Staff","130140612","14/10/2016","Early Intervention","EIP Locality 7","R1100"
"Wolverhampton City Council","http://opendatacommunities.org/id/metropolitan-district-council/wolverhampton","Lepus Consulting Limited","1195A","1,288.00","Services - Professional Fees","130139550","28/10/2016","Planning","Planning","R4400"
"Wolverhampton City Council","http://opendatacommunities.org/id/metropolitan-district-council/wolverhampton","Lewis Psychology Cic","2750","86.00","Services - Professional Fees","130137012","07/10/2016","Human Resources","Stress Counselling","R4400"
"Wolverhampton City Council","http://opendatacommunities.org/id/metropolitan-district-council/wolverhampton","Lewis Psychology Cic","2749","258.00","Services - Professional Fees","130137011","07/10/2016","Human Resources","Stress Counselling","R4400"
"Wolverhampton City Council","http://opendatacommunities.org/id/metropolitan-district-council/wolverhampton","Lewis Psychology Cic","2724","258.00","Services - Professional Fees","130138155","05/10/2016","Human Resources","Stress Counselling","R4400"
"Wolverhampton City Council","http://opendatacommunities.org/id/metropolitan-district-council/wolverhampton","Lewis Psychology Cic","2761","258.00","Services - Professional Fees","130139128","26/10/2016","Human Resources","Stress Counselling","R4400"
"Wolverhampton City Council","http://opendatacommunities.org/id/metropolitan-district-council/wolverhampton","Lewis Psychology Cic","2762","258.00","Services - Professional Fees","130139129","26/10/2016","Human Resources","Stress Counselling","R4400"
"Wolverhampton City Council","http://opendatacommunities.org/id/metropolitan-district-council/wolverhampton","Lewis Psychology Cic","2763","258.00","Services - Professional Fees","130139130","26/10/2016","Human Resources","Stress Counselling","R4400"
"Wolverhampton City Council","http://opendatacommunities.org/id/metropolitan-district-council/wolverhampton","Lewis Psychology Cic","2766","258.00","Services - Professional Fees","130139133","26/10/2016","Human Resources","Stress Counselling","R4400"
"Wolverhampton City Council","http://opendatacommunities.org/id/metropolitan-district-council/wolverhampton","Lewis Psychology Cic","2767","258.00","Services - Professional Fees","130139134","26/10/2016","Human Resources","Stress Counselling","R4400"
"Wolverhampton City Council","http://opendatacommunities.org/id/metropolitan-district-council/wolverhampton","Lewis Psychology Cic","2768","215.00","Services - Professional Fees","130139135","26/10/2016","Human Resources","Stress Counselling","R4400"
"Wolverhampton City Council","http://opendatacommunities.org/id/metropolitan-district-council/wolverhampton","Lewis Psychology Cic","2769","430.00","Services - Professional Fees","130139136","26/10/2016","Human Resources","Stress Counselling","R4400"
"Wolverhampton City Council","http://opendatacommunities.org/id/metropolitan-district-council/wolverhampton","Lewis Psychology Cic","2770","430.00","Services - Professional Fees","130139137","26/10/2016","Human Resources","Stress Counselling","R4400"
"Wolverhampton City Council","http://opendatacommunities.org/id/metropolitan-district-council/wolverhampton","Lewis Psychology Cic","2764","129.00","Services - Professional Fees","130139131","26/10/2016","Human Resources","Stress Counselling","R4400"
"Wolverhampton City Council","http://opendatacommunities.org/id/metropolitan-district-council/wolverhampton","Lewis Psychology Cic","2765","430.00","Services - Professional Fees","130139132","26/10/2016","Human Resources","Stress Counselling","R4400"
"Wolverhampton City Council","http://opendatacommunities.org/id/metropolitan-district-council/wolverhampton","Lewis Psychology Cic","2756","43.00","Services - Professional Fees","130137976","14/10/2016","Human Resources","Stress Counselling","R4400"
"Wolverhampton City Council","http://opendatacommunities.org/id/metropolitan-district-council/wolverhampton","Lewis Psychology Cic","2751","258.00","Services - Professional Fees","130137808","14/10/2016","Human Resources","Stress Counselling","R4400"
"Wolverhampton City Council","http://opendatacommunities.org/id/metropolitan-district-council/wolverhampton","Lewis Psychology Cic","2752","258.00","Services - Professional Fees","130137809","14/10/2016","Human Resources","Stress Counselling","R4400"
"Wolverhampton City Council","http://opendatacommunities.org/id/metropolitan-district-council/wolverhampton","Lewis Psychology Cic","2753","258.00","Services - Professional Fees","130137810","14/10/2016","Human Resources","Stress Counselling","R4400"
"Wolverhampton City Council","http://opendatacommunities.org/id/metropolitan-district-council/wolverhampton","Lewis Psychology Cic","2754","258.00","Services - Professional Fees","130137811","14/10/2016","Human Resources","Stress Counselling","R4400"
"Wolverhampton City Council","http://opendatacommunities.org/id/metropolitan-district-council/wolverhampton","Lewis Psychology Cic","2755","258.00","Services - Professional Fees","130137812","14/10/2016","Human Resources","Stress Counselling","R4400"
"Wolverhampton City Council","http://opendatacommunities.org/id/metropolitan-district-council/wolverhampton","Lewis Psychology Cic","2757","387.00","Services - Professional Fees","130137813","14/10/2016","Human Resources","Stress Counselling","R4400"
"Wolverhampton City Council","http://opendatacommunities.org/id/metropolitan-district-council/wolverhampton","Lewis Psychology Cic","2758","387.00","Services - Professional Fees","130137814","14/10/2016","Human Resources","Stress Counselling","R4400"
"Wolverhampton City Council","http://opendatacommunities.org/id/metropolitan-district-council/wolverhampton","Lewis�S Medical Supp/Ta Pleskarn Limited","SI045673","580.70","Materials","130134169","05/10/2016","Older People Provider Services","Bradley Lodge Resource Centre","R4007"
"Wolverhampton City Council","http://opendatacommunities.org/id/metropolitan-district-council/wolverhampton","Lewis�S Medical Supp/Ta Pleskarn Limited","SI046715","19.45","Materials","130138733","07/10/2016","Leisure Services","Central Baths","R4007"
"Wolverhampton City Council","http://opendatacommunities.org/id/metropolitan-district-council/wolverhampton","Lewis�S Medical Supp/Ta Pleskarn Limited","SI047281","188.65","Materials","130141305","19/10/2016","Adult Education","Service Wide","R4007"
"Wolverhampton City Council","http://opendatacommunities.org/id/metropolitan-district-council/wolverhampton","LG Futures Limited","3001779","895.00","Services - Consultants","130140975","14/10/2016","Strategic Finance","Strategic Finance","R4404"
"Wolverhampton City Council","http://opendatacommunities.org/id/metropolitan-district-council/wolverhampton","Local Government Information Unit","303636","149.95","Training Expenses","130141757","21/10/2016","Human Resources","Member Training","R1650"
"Wolverhampton City Council","http://opendatacommunities.org/id/metropolitan-district-council/wolverhampton","Local Government Information Unit","303833","149.95","Training Expenses","130141759","21/10/2016","Human Resources","Member Training","R1650"
"Wolverhampton City Council","http://opendatacommunities.org/id/metropolitan-district-council/wolverhampton","Lodge Tyre Co.Limited","15R00768","-70.00","Vehicle Maintenance - Spare Parts","190275251","14/10/2016","Fleet Services","Fleet Management","R3009"
"Wolverhampton City Council","http://opendatacommunities.org/id/metropolitan-district-council/wolverhampton","Lodge Tyre Co.Limited","15R00769","-89.00","Vehicle Maintenance - Spare Parts","190275252","14/10/2016","Fleet Services","Fleet Management","R3009"
"Wolverhampton City Council","http://opendatacommunities.org/id/metropolitan-district-council/wolverhampton","Lodge Tyre Co.Limited","PE004299","50.00","Vehicle Maintenance - Spare Parts","190275333","14/10/2016","Fleet Services","Fleet Management","R3009"
"Wolverhampton City Council","http://opendatacommunities.org/id/metropolitan-district-council/wolverhampton","Lodge Tyre Co.Limited","PE004299","30.00","Vehicle Maintenance - Spare Parts","190275333","14/10/2016","Fleet Services","Fleet Management","R3009"
"Wolverhampton City Council","http://opendatacommunities.org/id/metropolitan-district-council/wolverhampton","Lodge Tyre Co.Limited","PE004299","15.00","Vehicle Maintenance - Spare Parts","190275333","14/10/2016","Fleet Services","Fleet Management","R3009"
"Wolverhampton City Council","http://opendatacommunities.org/id/metropolitan-district-council/wolverhampton","Lodge Tyre Co.Limited","PE004299","15.00","Vehicle Maintenance - Spare Parts","190275333","14/10/2016","Fleet Services","Fleet Management","R3009"
"Wolverhampton City Council","http://opendatacommunities.org/id/metropolitan-district-council/wolverhampton","Lodge Tyre Co.Limited","PE004299","215.00","Vehicle Maintenance - Spare Parts","190275333","14/10/2016","Fleet Services","Fleet Management","R3009"
"Wolverhampton City Council","http://opendatacommunities.org/id/metropolitan-district-council/wolverhampton","Lodge Tyre Co.Limited","PE004299","60.00","Vehicle Maintenance - Spare Parts","190275333","14/10/2016","Fleet Services","Fleet Management","R3009"
"Wolverhampton City Council","http://opendatacommunities.org/id/metropolitan-district-council/wolverhampton","Lodge Tyre Co.Limited","PE004299","15.00","Vehicle Maintenance - Spare Parts","190275333","14/10/2016","Fleet Services","Fleet Management","R3009"
"Wolverhampton City Council","http://opendatacommunities.org/id/metropolitan-district-council/wolverhampton","Lodge Tyre Co.Limited","PE004299","44.00","Vehicle Maintenance - Spare Parts","190275333","14/10/2016","Fleet Services","Fleet Management","R3009"
"Wolverhampton City Council","http://opendatacommunities.org/id/metropolitan-district-council/wolverhampton","Lodge Tyre Co.Limited","PE004299","60.00","Vehicle Maintenance - Spare Parts","190275333","14/10/2016","Fleet Services","Fleet Management","R3009"
"Wolverhampton City Council","http://opendatacommunities.org/id/metropolitan-district-council/wolverhampton","Lodge Tyre Co.Limited","PE004299","30.00","Vehicle Maintenance - Spare Parts","190275333","14/10/2016","Fleet Services","Fleet Management","R3009"
"Wolverhampton City Council","http://opendatacommunities.org/id/metropolitan-district-council/wolverhampton","Lodge Tyre Co.Limited","PE004299","15.00","Vehicle Maintenance - Spare Parts","190275333","14/10/2016","Fleet Services","Fleet Management","R3009"
"Wolverhampton City Council","http://opendatacommunities.org/id/metropolitan-district-council/wolverhampton","Lodge Tyre Co.Limited","PE004299","20.00","Vehicle Maintenance - Spare Parts","190275333","14/10/2016","Fleet Services","Fleet Management","R3009"
"Wolverhampton City Council","http://opendatacommunities.org/id/metropolitan-district-council/wolverhampton","Lodge Tyre Co.Limited","PE004299","30.00","Vehicle Maintenance - Spare Parts","190275333","14/10/2016","Fleet Services","Fleet Management","R3009"
"Wolverhampton City Council","http://opendatacommunities.org/id/metropolitan-district-council/wolverhampton","Lodge Tyre Co.Limited","PE004299","15.00","Vehicle Maintenance - Spare Parts","190275333","14/10/2016","Fleet Services","Fleet Management","R3009"
"Wolverhampton City Council","http://opendatacommunities.org/id/metropolitan-district-council/wolverhampton","Lodge Tyre Co.Limited","PE004299","25.00","Vehicle Maintenance - Spare Parts","190275333","14/10/2016","Fleet Services","Fleet Management","R3009"
"Wolverhampton City Council","http://opendatacommunities.org/id/metropolitan-district-council/wolverhampton","Lodge Tyre Co.Limited","PE004299","30.00","Vehicle Maintenance - Spare Parts","190275333","14/10/2016","Fleet Services","Fleet Management","R3009"
"Wolverhampton City Council","http://opendatacommunities.org/id/metropolitan-district-council/wolverhampton","Lodge Tyre Co.Limited","PE004299","45.00","Vehicle Maintenance - Spare Parts","190275333","14/10/2016","Fleet Services","Fleet Management","R3009"
"Wolverhampton City Council","http://opendatacommunities.org/id/metropolitan-district-council/wolverhampton","Lodge Tyre Co.Limited","PE004299","25.00","Vehicle Maintenance - Spare Parts","190275333","14/10/2016","Fleet Services","Fleet Management","R3009"
"Wolverhampton City Council","http://opendatacommunities.org/id/metropolitan-district-council/wolverhampton","Lodge Tyre Co.Limited","PE004299","30.00","Vehicle Maintenance - Spare Parts","190275333","14/10/2016","Fleet Services","Fleet Management","R3009"
"Wolverhampton City Council","http://opendatacommunities.org/id/metropolitan-district-council/wolverhampton","Lodge Tyre Co.Limited","PE004299","45.00","Vehicle Maintenance - Spare Parts","190275333","14/10/2016","Fleet Services","Fleet Management","R3009"
"Wolverhampton City Council","http://opendatacommunities.org/id/metropolitan-district-council/wolverhampton","Lodge Tyre Co.Limited","PE004299","30.00","Vehicle Maintenance - Spare Parts","190275333","14/10/2016","Fleet Services","Fleet Management","R3009"
"Wolverhampton City Council","http://opendatacommunities.org/id/metropolitan-district-council/wolverhampton","Lodge Tyre Co.Limited","PE004299","25.00","Vehicle Maintenance - Spare Parts","190275333","14/10/2016","Fleet Services","Fleet Management","R3009"
"Wolverhampton City Council","http://opendatacommunities.org/id/metropolitan-district-council/wolverhampton","Lodge Tyre Co.Limited","PE004299","25.00","Vehicle Maintenance - Spare Parts","190275333","14/10/2016","Fleet Services","Fleet Management","R3009"
"Wolverhampton City Council","http://opendatacommunities.org/id/metropolitan-district-council/wolverhampton","Lodge Tyre Co.Limited","PE004299","25.00","Vehicle Maintenance - Spare Parts","190275333","14/10/2016","Fleet Services","Fleet Management","R3009"
"Wolverhampton City Council","http://opendatacommunities.org/id/metropolitan-district-council/wolverhampton","Lodge Tyre Co.Limited","PE004299","262.00","Vehicle Maintenance - Spare Parts","190275333","14/10/2016","Fleet Services","Fleet Management","R3009"
"Wolverhampton City Council","http://opendatacommunities.org/id/metropolitan-district-council/wolverhampton","Lodge Tyre Co.Limited","PE004299","390.00","Vehicle Maintenance - Spare Parts","190275333","14/10/2016","Fleet Services","Fleet Management","R3009"
"Wolverhampton City Council","http://opendatacommunities.org/id/metropolitan-district-council/wolverhampton","Lodge Tyre Co.Limited","PE004299","585.00","Vehicle Maintenance - Spare Parts","190275333","14/10/2016","Fleet Services","Fleet Management","R3009"
"Wolverhampton City Council","http://opendatacommunities.org/id/metropolitan-district-council/wolverhampton","Lodge Tyre Co.Limited","PE004299","390.00","Vehicle Maintenance - Spare Parts","190275333","14/10/2016","Fleet Services","Fleet Management","R3009"
"Wolverhampton City Council","http://opendatacommunities.org/id/metropolitan-district-council/wolverhampton","Lodge Tyre Co.Limited","PE004299","30.00","Vehicle Maintenance - Spare Parts","190275333","14/10/2016","Fleet Services","Fleet Management","R3009"
"Wolverhampton City Council","http://opendatacommunities.org/id/metropolitan-district-council/wolverhampton","Lodge Tyre Co.Limited","PE004299","50.00","Vehicle Maintenance - Spare Parts","190275333","14/10/2016","Fleet Services","Fleet Management","R3009"
"Wolverhampton City Council","http://opendatacommunities.org/id/metropolitan-district-council/wolverhampton","Lodge Tyre Co.Limited","PE004299","245.00","Vehicle Maintenance - Spare Parts","190275333","14/10/2016","Fleet Services","Fleet Management","R3009"
"Wolverhampton City Council","http://opendatacommunities.org/id/metropolitan-district-council/wolverhampton","Lodge Tyre Co.Limited","PE004299","249.00","Vehicle Maintenance - Spare Parts","190275333","14/10/2016","Fleet Services","Fleet Management","R3009"
"Wolverhampton City Council","http://opendatacommunities.org/id/metropolitan-district-council/wolverhampton","Lodge Tyre Co.Limited","PE004299","390.00","Vehicle Maintenance - Spare Parts","190275333","14/10/2016","Fleet Services","Fleet Management","R3009"
"Wolverhampton City Council","http://opendatacommunities.org/id/metropolitan-district-council/wolverhampton","Lodge Tyre Co.Limited","PE004299","171.94","Vehicle Maintenance - Spare Parts","190275333","14/10/2016","Fleet Services","Fleet Management","R3009"
"Wolverhampton City Council","http://opendatacommunities.org/id/metropolitan-district-council/wolverhampton","Lodge Tyre Co.Limited","PE004299","89.00","Vehicle Maintenance - Spare Parts","190275333","14/10/2016","Fleet Services","Fleet Management","R3009"
"Wolverhampton City Council","http://opendatacommunities.org/id/metropolitan-district-council/wolverhampton","Lodge Tyre Co.Limited","PE004299","15.00","Vehicle Maintenance - Spare Parts","190275333","14/10/2016","Fleet Services","Fleet Management","R3009"
"Wolverhampton City Council","http://opendatacommunities.org/id/metropolitan-district-council/wolverhampton","Lodge Tyre Co.Limited","PE004299","30.00","Vehicle Maintenance - Spare Parts","190275333","14/10/2016","Fleet Services","Fleet Management","R3009"
"Wolverhampton City Council","http://opendatacommunities.org/id/metropolitan-district-council/wolverhampton","Lodge Tyre Co.Limited","PE004299","60.00","Vehicle Maintenance - Spare Parts","190275333","14/10/2016","Fleet Services","Fleet Management","R3009"
"Wolverhampton City Council","http://opendatacommunities.org/id/metropolitan-district-council/wolverhampton","Lodge Tyre Co.Limited","PE004299","156.17","Vehicle Maintenance - Spare Parts","190275333","14/10/2016","Fleet Services","Fleet Management","R3009"
"Wolverhampton City Council","http://opendatacommunities.org/id/metropolitan-district-council/wolverhampton","Lodge Tyre Co.Limited","PE004299","390.00","Vehicle Maintenance - Spare Parts","190275333","14/10/2016","Fleet Services","Fleet Management","R3009"
"Wolverhampton City Council","http://opendatacommunities.org/id/metropolitan-district-council/wolverhampton","Lodge Tyre Co.Limited","PE004299","22.50","Vehicle Maintenance - Spare Parts","190275333","14/10/2016","Fleet Services","Fleet Management","R3009"
"Wolverhampton City Council","http://opendatacommunities.org/id/metropolitan-district-council/wolverhampton","Lodge Tyre Co.Limited","PE004299","60.00","Vehicle Maintenance - Spare Parts","190275333","14/10/2016","Fleet Services","Fleet Management","R3009"
"Wolverhampton City Council","http://opendatacommunities.org/id/metropolitan-district-council/wolverhampton","Lodge Tyre Co.Limited","PE004299","22.50","Vehicle Maintenance - Spare Parts","190275333","14/10/2016","Fleet Services","Fleet Management","R3009"
"Wolverhampton City Council","http://opendatacommunities.org/id/metropolitan-district-council/wolverhampton","Lodge Tyre Co.Limited","PE004299","54.00","Vehicle Maintenance - Spare Parts","190275333","14/10/2016","Fleet Services","Fleet Management","R3009"
"Wolverhampton City Council","http://opendatacommunities.org/id/metropolitan-district-council/wolverhampton","Lodge Tyre Co.Limited","PE004299","60.00","Vehicle Maintenance - Spare Parts","190275333","14/10/2016","Fleet Services","Fleet Management","R3009"
"Wolverhampton City Council","http://opendatacommunities.org/id/metropolitan-district-council/wolverhampton","Lodge Tyre Co.Limited","PE004299","44.00","Vehicle Maintenance - Spare Parts","190275333","14/10/2016","Fleet Services","Fleet Management","R3009"
"Wolverhampton City Council","http://opendatacommunities.org/id/metropolitan-district-council/wolverhampton","Lodge Tyre Co.Limited","PE004299","54.00","Vehicle Maintenance - Spare Parts","190275333","14/10/2016","Fleet Services","Fleet Management","R3009"
"Wolverhampton City Council","http://opendatacommunities.org/id/metropolitan-district-council/wolverhampton","Lodge Tyre Co.Limited","PE004299","45.00","Vehicle Maintenance - Spare Parts","190275333","14/10/2016","Fleet Services","Fleet Management","R3009"
"Wolverhampton City Council","http://opendatacommunities.org/id/metropolitan-district-council/wolverhampton","Lodge Tyre Co.Limited","PE004299","50.00","Vehicle Maintenance - Spare Parts","190275333","14/10/2016","Fleet Services","Fleet Management","R3009"
"Wolverhampton City Council","http://opendatacommunities.org/id/metropolitan-district-council/wolverhampton","Lodge Tyre Co.Limited","PE004299","25.00","Vehicle Maintenance - Spare Parts","190275333","14/10/2016","Fleet Services","Fleet Management","R3009"
"Wolverhampton City Council","http://opendatacommunities.org/id/metropolitan-district-council/wolverhampton","Lodge Tyre Co.Limited","PE004299","262.00","Vehicle Maintenance - Spare Parts","190275333","14/10/2016","Fleet Services","Fleet Management","R3009"
"Wolverhampton City Council","http://opendatacommunities.org/id/metropolitan-district-council/wolverhampton","Lodge Tyre Co.Limited","PE004299","15.00","Vehicle Maintenance - Spare Parts","190275333","14/10/2016","Fleet Services","Fleet Management","R3009"
"Wolverhampton City Council","http://opendatacommunities.org/id/metropolitan-district-council/wolverhampton","Lodge Tyre Co.Limited","PE004299","30.00","Vehicle Maintenance - Spare Parts","190275333","14/10/2016","Fleet Services","Fleet Management","R3009"
"Wolverhampton City Council","http://opendatacommunities.org/id/metropolitan-district-council/wolverhampton","Lodge Tyre Co.Limited","PE004299","46.00","Vehicle Maintenance - Spare Parts","190275333","14/10/2016","Fleet Services","Fleet Management","R3009"
"Wolverhampton City Council","http://opendatacommunities.org/id/metropolitan-district-council/wolverhampton","Lodge Tyre Co.Limited","PE004299","15.00","Vehicle Maintenance - Spare Parts","190275333","14/10/2016","Fleet Services","Fleet Management","R3009"
"Wolverhampton City Council","http://opendatacommunities.org/id/metropolitan-district-council/wolverhampton","Lodge Tyre Co.Limited","PE004299","99.00","Vehicle Maintenance - Spare Parts","190275333","14/10/2016","Fleet Services","Fleet Management","R3009"
"Wolverhampton City Council","http://opendatacommunities.org/id/metropolitan-district-council/wolverhampton","Lodge Tyre Co.Limited","PE004299","2.00","Vehicle Maintenance - Spare Parts","190275333","14/10/2016","Fleet Services","Fleet Management","R3009"
"Wolverhampton City Council","http://opendatacommunities.org/id/metropolitan-district-council/wolverhampton","Lodge Tyre Co.Limited","PE004299","60.00","Vehicle Maintenance - Spare Parts","190275333","14/10/2016","Fleet Services","Fleet Management","R3009"
"Wolverhampton City Council","http://opendatacommunities.org/id/metropolitan-district-council/wolverhampton","Lodge Tyre Co.Limited","PE004299","15.00","Vehicle Maintenance - Spare Parts","190275333","14/10/2016","Fleet Services","Fleet Management","R3009"
"Wolverhampton City Council","http://opendatacommunities.org/id/metropolitan-district-council/wolverhampton","Lodge Tyre Co.Limited","PE004299","108.00","Vehicle Maintenance - Spare Parts","190275333","14/10/2016","Fleet Services","Fleet Management","R3009"
"Wolverhampton City Council","http://opendatacommunities.org/id/metropolitan-district-council/wolverhampton","Lodge Tyre Co.Limited","PE004299","15.00","Vehicle Maintenance - Spare Parts","190275333","14/10/2016","Fleet Services","Fleet Management","R3009"
"Wolverhampton City Council","http://opendatacommunities.org/id/metropolitan-district-council/wolverhampton","Lodge Tyre Co.Limited","PE004299","60.00","Vehicle Maintenance - Spare Parts","190275333","14/10/2016","Fleet Services","Fleet Management","R3009"
"Wolverhampton City Council","http://opendatacommunities.org/id/metropolitan-district-council/wolverhampton","Lodge Tyre Co.Limited","PE004299","15.00","Vehicle Maintenance - Spare Parts","190275333","14/10/2016","Fleet Services","Fleet Management","R3009"
"Wolverhampton City Council","http://opendatacommunities.org/id/metropolitan-district-council/wolverhampton","Lodge Tyre Co.Limited","PE004299","156.17","Vehicle Maintenance - Spare Parts","190275333","14/10/2016","Fleet Services","Fleet Management","R3009"
"Wolverhampton City Council","http://opendatacommunities.org/id/metropolitan-district-council/wolverhampton","Lodge Tyre Co.Limited","PE004299","75.00","Vehicle Maintenance - Spare Parts","190275333","14/10/2016","Fleet Services","Fleet Management","R3009"
"Wolverhampton City Council","http://opendatacommunities.org/id/metropolitan-district-council/wolverhampton","Lodge Tyre Co.Limited","PE004299","390.00","Vehicle Maintenance - Spare Parts","190275333","14/10/2016","Fleet Services","Fleet Management","R3009"
"Wolverhampton City Council","http://opendatacommunities.org/id/metropolitan-district-council/wolverhampton","Lodge Tyre Co.Limited","PE004299","30.00","Vehicle Maintenance - Spare Parts","190275333","14/10/2016","Fleet Services","Fleet Management","R3009"
"Wolverhampton City Council","http://opendatacommunities.org/id/metropolitan-district-council/wolverhampton","Lodge Tyre Co.Limited","PE004299","245.00","Vehicle Maintenance - Spare Parts","190275333","14/10/2016","Fleet Services","Fleet Management","R3009"
"Wolverhampton City Council","http://opendatacommunities.org/id/metropolitan-district-council/wolverhampton","Lodge Tyre Co.Limited","PE004299","195.00","Vehicle Maintenance - Spare Parts","190275333","14/10/2016","Fleet Services","Fleet Management","R3009"
"Wolverhampton City Council","http://opendatacommunities.org/id/metropolitan-district-council/wolverhampton","Lodge Tyre Co.Limited","PE004299","25.00","Vehicle Maintenance - Spare Parts","190275333","14/10/2016","Fleet Services","Fleet Management","R3009"
"Wolverhampton City Council","http://opendatacommunities.org/id/metropolitan-district-council/wolverhampton","Lodge Tyre Co.Limited","PE004299","30.00","Vehicle Maintenance - Spare Parts","190275333","14/10/2016","Fleet Services","Fleet Management","R3009"
"Wolverhampton City Council","http://opendatacommunities.org/id/metropolitan-district-council/wolverhampton","Lodge Tyre Co.Limited","PE004299","75.00","Vehicle Maintenance - Spare Parts","190275333","14/10/2016","Fleet Services","Fleet Management","R3009"
"Wolverhampton City Council","http://opendatacommunities.org/id/metropolitan-district-council/wolverhampton","Lodge Tyre Co.Limited","PE004299","390.00","Vehicle Maintenance - Spare Parts","190275333","14/10/2016","Fleet Services","Fleet Management","R3009"
"Wolverhampton City Council","http://opendatacommunities.org/id/metropolitan-district-council/wolverhampton","Lodge Tyre Co.Limited","PE004299","50.00","Vehicle Maintenance - Spare Parts","190275333","14/10/2016","Fleet Services","Fleet Management","R3009"
"Wolverhampton City Council","http://opendatacommunities.org/id/metropolitan-district-council/wolverhampton","Lodge Tyre Co.Limited","PE004299","390.00","Vehicle Maintenance - Spare Parts","190275333","14/10/2016","Fleet Services","Fleet Management","R3009"
"Wolverhampton City Council","http://opendatacommunities.org/id/metropolitan-district-council/wolverhampton","Lodge Tyre Co.Limited","PE004299","390.00","Vehicle Maintenance - Spare Parts","190275333","14/10/2016","Fleet Services","Fleet Management","R3009"
"Wolverhampton City Council","http://opendatacommunities.org/id/metropolitan-district-council/wolverhampton","Lodge Tyre Co.Limited","PE004299","390.00","Vehicle Maintenance - Spare Parts","190275333","14/10/2016","Fleet Services","Fleet Management","R3009"
"Wolverhampton City Council","http://opendatacommunities.org/id/metropolitan-district-council/wolverhampton","Lodge Tyre Co.Limited","PE004299","390.00","Vehicle Maintenance - Spare Parts","190275333","14/10/2016","Fleet Services","Fleet Management","R3009"
"Wolverhampton City Council","http://opendatacommunities.org/id/metropolitan-district-council/wolverhampton","Lodge Tyre Co.Limited","PE004299","30.00","Vehicle Maintenance - Spare Parts","190275333","14/10/2016","Fleet Services","Fleet Management","R3009"
"Wolverhampton City Council","http://opendatacommunities.org/id/metropolitan-district-council/wolverhampton","Lodge Tyre Co.Limited","PE004299","75.00","Vehicle Maintenance - Spare Parts","190275333","14/10/2016","Fleet Services","Fleet Management","R3009"
"Wolverhampton City Council","http://opendatacommunities.org/id/metropolitan-district-council/wolverhampton","Lodge Tyre Co.Limited","PE004299","262.00","Vehicle Maintenance - Spare Parts","190275333","14/10/2016","Fleet Services","Fleet Management","R3009"
"Wolverhampton City Council","http://opendatacommunities.org/id/metropolitan-district-council/wolverhampton","Lodge Tyre Co.Limited","PE004299","25.00","Vehicle Maintenance - Spare Parts","190275333","14/10/2016","Fleet Services","Fleet Management","R3009"
"Wolverhampton City Council","http://opendatacommunities.org/id/metropolitan-district-council/wolverhampton","Lodge Tyre Co.Limited","PE004299","30.00","Vehicle Maintenance - Spare Parts","190275333","14/10/2016","Fleet Services","Fleet Management","R3009"
"Wolverhampton City Council","http://opendatacommunities.org/id/metropolitan-district-council/wolverhampton","Lodge Tyre Co.Limited","PE004299","25.00","Vehicle Maintenance - Spare Parts","190275333","14/10/2016","Fleet Services","Fleet Management","R3009"
"Wolverhampton City Council","http://opendatacommunities.org/id/metropolitan-district-council/wolverhampton","Lodge Tyre Co.Limited","PE004299","44.00","Vehicle Maintenance - Spare Parts","190275333","14/10/2016","Fleet Services","Fleet Management","R3009"
"Wolverhampton City Council","http://opendatacommunities.org/id/metropolitan-district-council/wolverhampton","Lodge Tyre Co.Limited","PE004299","60.00","Vehicle Maintenance - Spare Parts","190275333","14/10/2016","Fleet Services","Fleet Management","R3009"
"Wolverhampton City Council","http://opendatacommunities.org/id/metropolitan-district-council/wolverhampton","Lodge Tyre Co.Limited","PE004299","60.00","Vehicle Maintenance - Spare Parts","190275333","14/10/2016","Fleet Services","Fleet Management","R3009"
"Wolverhampton City Council","http://opendatacommunities.org/id/metropolitan-district-council/wolverhampton","Lodge Tyre Co.Limited","PE004299","15.00","Vehicle Maintenance - Spare Parts","190275333","14/10/2016","Fleet Services","Fleet Management","R3009"
"Wolverhampton City Council","http://opendatacommunities.org/id/metropolitan-district-council/wolverhampton","Lodge Tyre Co.Limited","PE004299","15.00","Vehicle Maintenance - Spare Parts","190275333","14/10/2016","Fleet Services","Fleet Management","R3009"
"Wolverhampton City Council","http://opendatacommunities.org/id/metropolitan-district-council/wolverhampton","Lodge Tyre Co.Limited","PE004299","265.00","Vehicle Maintenance - Spare Parts","190275333","14/10/2016","Fleet Services","Fleet Management","R3009"
"Wolverhampton City Council","http://opendatacommunities.org/id/metropolitan-district-council/wolverhampton","Lodge Tyre Co.Limited","PE004299","15.00","Vehicle Maintenance - Spare Parts","190275333","14/10/2016","Fleet Services","Fleet Management","R3009"
"Wolverhampton City Council","http://opendatacommunities.org/id/metropolitan-district-council/wolverhampton","Lodge Tyre Co.Limited","PE004299","30.00","Vehicle Maintenance - Spare Parts","190275333","14/10/2016","Fleet Services","Fleet Management","R3009"
"Wolverhampton City Council","http://opendatacommunities.org/id/metropolitan-district-council/wolverhampton","Lodge Tyre Co.Limited","PE004299","176.45","Vehicle Maintenance - Spare Parts","190275333","14/10/2016","Fleet Services","Fleet Management","R3009"
"Wolverhampton City Council","http://opendatacommunities.org/id/metropolitan-district-council/wolverhampton","Lodge Tyre Co.Limited","PE004299","197.22","Vehicle Maintenance - Spare Parts","190275333","14/10/2016","Fleet Services","Fleet Management","R3009"
"Wolverhampton City Council","http://opendatacommunities.org/id/metropolitan-district-council/wolverhampton","Lodge Tyre Co.Limited","PE004299","46.50","Vehicle Maintenance - Spare Parts","190275333","14/10/2016","Fleet Services","Fleet Management","R3009"
"Wolverhampton City Council","http://opendatacommunities.org/id/metropolitan-district-council/wolverhampton","Lodge Tyre Co.Limited","PE004299","15.00","Vehicle Maintenance - Spare Parts","190275333","14/10/2016","Fleet Services","Fleet Management","R3009"
"Wolverhampton City Council","http://opendatacommunities.org/id/metropolitan-district-council/wolverhampton","Lodge Tyre Co.Limited","PE004299","30.00","Vehicle Maintenance - Spare Parts","190275333","14/10/2016","Fleet Services","Fleet Management","R3009"
"Wolverhampton City Council","http://opendatacommunities.org/id/metropolitan-district-council/wolverhampton","Lodge Tyre Co.Limited","PE004299","390.00","Vehicle Maintenance - Spare Parts","190275333","14/10/2016","Fleet Services","Fleet Management","R3009"
"Wolverhampton City Council","http://opendatacommunities.org/id/metropolitan-district-council/wolverhampton","Lodge Tyre Co.Limited","PE004299","50.00","Vehicle Maintenance - Spare Parts","190275333","14/10/2016","Fleet Services","Fleet Management","R3009"
"Wolverhampton City Council","http://opendatacommunities.org/id/metropolitan-district-council/wolverhampton","Lodge Tyre Co.Limited","PE004299","25.00","Vehicle Maintenance - Spare Parts","190275333","14/10/2016","Fleet Services","Fleet Management","R3009"
"Wolverhampton City Council","http://opendatacommunities.org/id/metropolitan-district-council/wolverhampton","Lodge Tyre Co.Limited","PE004299","25.00","Vehicle Maintenance - Spare Parts","190275333","14/10/2016","Fleet Services","Fleet Management","R3009"
"Wolverhampton City Council","http://opendatacommunities.org/id/metropolitan-district-council/wolverhampton","Lodge Tyre Co.Limited","PE004299","30.00","Vehicle Maintenance - Spare Parts","190275333","14/10/2016","Fleet Services","Fleet Management","R3009"
"Wolverhampton City Council","http://opendatacommunities.org/id/metropolitan-district-council/wolverhampton","Lodge Tyre Co.Limited","PE004299","225.00","Vehicle Maintenance - Spare Parts","190275333","14/10/2016","Fleet Services","Fleet Management","R3009"
"Wolverhampton City Council","http://opendatacommunities.org/id/metropolitan-district-council/wolverhampton","Lodge Tyre Co.Limited","PE004299","50.00","Vehicle Maintenance - Spare Parts","190275333","14/10/2016","Fleet Services","Fleet Management","R3009"
"Wolverhampton City Council","http://opendatacommunities.org/id/metropolitan-district-council/wolverhampton","Lodge Tyre Co.Limited","PE004299","195.00","Vehicle Maintenance - Spare Parts","190275333","14/10/2016","Fleet Services","Fleet Management","R3009"
"Wolverhampton City Council","http://opendatacommunities.org/id/metropolitan-district-council/wolverhampton","Lodge Tyre Co.Limited","PE004299","25.00","Vehicle Maintenance - Spare Parts","190275333","14/10/2016","Fleet Services","Fleet Management","R3009"
"Wolverhampton City Council","http://opendatacommunities.org/id/metropolitan-district-council/wolverhampton","Lodge Tyre Co.Limited","PE004299","780.00","Vehicle Maintenance - Spare Parts","190275333","14/10/2016","Fleet Services","Fleet Management","R3009"
"Wolverhampton City Council","http://opendatacommunities.org/id/metropolitan-district-council/wolverhampton","Lodge Tyre Co.Limited","PE004299","390.00","Vehicle Maintenance - Spare Parts","190275333","14/10/2016","Fleet Services","Fleet Management","R3009"
"Wolverhampton City Council","http://opendatacommunities.org/id/metropolitan-district-council/wolverhampton","Lodge Tyre Co.Limited","PE004299","30.00","Vehicle Maintenance - Spare Parts","190275333","14/10/2016","Fleet Services","Fleet Management","R3009"
"Wolverhampton City Council","http://opendatacommunities.org/id/metropolitan-district-council/wolverhampton","Lodge Tyre Co.Limited","PE004299","25.00","Vehicle Maintenance - Spare Parts","190275333","14/10/2016","Fleet Services","Fleet Management","R3009"
"Wolverhampton City Council","http://opendatacommunities.org/id/metropolitan-district-council/wolverhampton","Lodge Tyre Co.Limited","PE004299","30.00","Vehicle Maintenance - Spare Parts","190275333","14/10/2016","Fleet Services","Fleet Management","R3009"
"Wolverhampton City Council","http://opendatacommunities.org/id/metropolitan-district-council/wolverhampton","Lodge Tyre Co.Limited","PE004299","780.00","Vehicle Maintenance - Spare Parts","190275333","14/10/2016","Fleet Services","Fleet Management","R3009"
"Wolverhampton City Council","http://opendatacommunities.org/id/metropolitan-district-council/wolverhampton","Lodge Tyre Co.Limited","PE004299","89.00","Vehicle Maintenance - Spare Parts","190275333","14/10/2016","Fleet Services","Fleet Management","R3009"
"Wolverhampton City Council","http://opendatacommunities.org/id/metropolitan-district-council/wolverhampton","Lodge Tyre Co.Limited","PE004299","25.00","Vehicle Maintenance - Spare Parts","190275333","14/10/2016","Fleet Services","Fleet Management","R3009"
"Wolverhampton City Council","http://opendatacommunities.org/id/metropolitan-district-council/wolverhampton","Lodge Tyre Co.Limited","PE004299","25.00","Vehicle Maintenance - Spare Parts","190275333","14/10/2016","Fleet Services","Fleet Management","R3009"
"Wolverhampton City Council","http://opendatacommunities.org/id/metropolitan-district-council/wolverhampton","Lodge Tyre Co.Limited","PE004299","50.00","Vehicle Maintenance - Spare Parts","190275333","14/10/2016","Fleet Services","Fleet Management","R3009"
"Wolverhampton City Council","http://opendatacommunities.org/id/metropolitan-district-council/wolverhampton","Lodge Tyre Co.Limited","PE004299","15.00","Vehicle Maintenance - Spare Parts","190275333","14/10/2016","Fleet Services","Fleet Management","R3009"
"Wolverhampton City Council","http://opendatacommunities.org/id/metropolitan-district-council/wolverhampton","Luscombe Cider Limited","137955","324.52","Provisions (Resale)","130138783","05/10/2016","Visitor Economy","Bantock - Tea Rooms","R4102"
"Wolverhampton City Council","http://opendatacommunities.org/id/metropolitan-district-council/wolverhampton","M & A Window Cleaning Limited","024","55.00","Window Cleaning","130134636","12/10/2016","Adult Education","The Maltings","R2701"
"Wolverhampton City Council","http://opendatacommunities.org/id/metropolitan-district-council/wolverhampton","M & A Window Cleaning Limited","024","-55.00","Window Cleaning","130134636","12/10/2016","Adult Education","The Maltings","R2701"
"Wolverhampton City Council","http://opendatacommunities.org/id/metropolitan-district-council/wolverhampton","M & A Window Cleaning Limited","024","55.00","Window Cleaning","130134636","12/10/2016","Adult Education","The Maltings","R2701"
"Wolverhampton City Council","http://opendatacommunities.org/id/metropolitan-district-council/wolverhampton","M & A Window Cleaning Limited","025","55.00","Window Cleaning","130136320","12/10/2016","Adult Education","The Maltings","R2701"
"Wolverhampton City Council","http://opendatacommunities.org/id/metropolitan-district-council/wolverhampton","M & A Window Cleaning Limited","025","-55.00","Window Cleaning","130136320","12/10/2016","Adult Education","The Maltings","R2701"
"Wolverhampton City Council","http://opendatacommunities.org/id/metropolitan-district-council/wolverhampton","M & A Window Cleaning Limited","025","55.00","Window Cleaning","130136320","12/10/2016","Adult Education","The Maltings","R2701"
"Wolverhampton City Council","http://opendatacommunities.org/id/metropolitan-district-council/wolverhampton","M & J Drilling Services Limited","9843","5,485.00","Services - Professional Fees","130140689","19/10/2016","Bereavement Services","Cemeteries","R4400"
"Wolverhampton City Council","http://opendatacommunities.org/id/metropolitan-district-council/wolverhampton","M.K.G. (Food Products) Limited","991656","157.51","Provisions (Resale)","130139401","26/10/2016","Visitor Economy","Bantock - Tea Rooms","R4102"
"Wolverhampton City Council","http://opendatacommunities.org/id/metropolitan-district-council/wolverhampton","M.K.G. (Food Products) Limited","991656","-157.51","Provisions (Resale)","130139401","26/10/2016","Visitor Economy","Bantock - Tea Rooms","R4102"
"Wolverhampton City Council","http://opendatacommunities.org/id/metropolitan-district-council/wolverhampton","M.K.G. (Food Products) Limited","991656","13.46","Provisions (Resale)","130139401","26/10/2016","Visitor Economy","Bantock - Tea Rooms","R4102"
"Wolverhampton City Council","http://opendatacommunities.org/id/metropolitan-district-council/wolverhampton","M.K.G. (Food Products) Limited","991656","144.05","Provisions (Resale)","130139401","26/10/2016","Visitor Economy","Bantock - Tea Rooms","R4102"
"Wolverhampton City Council","http://opendatacommunities.org/id/metropolitan-district-council/wolverhampton","M.K.G. (Food Products) Limited","992154","176.05","Provisions (Resale)","130139402","26/10/2016","Visitor Economy","Art Gallery Tea Room","R4102"
"Wolverhampton City Council","http://opendatacommunities.org/id/metropolitan-district-council/wolverhampton","M.K.G. (Food Products) Limited","992154","-176.05","Provisions (Resale)","130139402","26/10/2016","Visitor Economy","Art Gallery Tea Room","R4102"
"Wolverhampton City Council","http://opendatacommunities.org/id/metropolitan-district-council/wolverhampton","M.K.G. (Food Products) Limited","992154","176.05","Provisions (Resale)","130139402","26/10/2016","Visitor Economy","Art Gallery Tea Room","R4102"
"Wolverhampton City Council","http://opendatacommunities.org/id/metropolitan-district-council/wolverhampton","M.K.G. (Food Products) Limited","169495","-1.80","Provisions (Resale)","130138791","21/10/2016","Visitor Economy","Art Gallery Tea Room","R4102"
"Wolverhampton City Council","http://opendatacommunities.org/id/metropolitan-district-council/wolverhampton","M.K.G. (Food Products) Limited","985815","563.48","Provisions (Resale)","130138853","21/10/2016","Visitor Economy","Bantock - Tea Rooms","R4102"
"Wolverhampton City Council","http://opendatacommunities.org/id/metropolitan-district-council/wolverhampton","M.K.G. (Food Products) Limited","985815","-563.48","Provisions (Resale)","130138853","21/10/2016","Visitor Economy","Bantock - Tea Rooms","R4102"
"Wolverhampton City Council","http://opendatacommunities.org/id/metropolitan-district-council/wolverhampton","M.K.G. (Food Products) Limited","976962","227.27","Provisions (Resale)","130138841","21/10/2016","Visitor Economy","Bantock - Tea Rooms","R4102"
"Wolverhampton City Council","http://opendatacommunities.org/id/metropolitan-district-council/wolverhampton","M.K.G. (Food Products) Limited","976962","-227.27","Provisions (Resale)","130138841","21/10/2016","Visitor Economy","Bantock - Tea Rooms","R4102"
"Wolverhampton City Council","http://opendatacommunities.org/id/metropolitan-district-council/wolverhampton","M.K.G. (Food Products) Limited","985483","227.37","Provisions (Resale)","130138852","21/10/2016","Visitor Economy","Bantock - Tea Rooms","R4102"
"Wolverhampton City Council","http://opendatacommunities.org/id/metropolitan-district-council/wolverhampton","M.K.G. (Food Products) Limited","985817","225.42","Provisions (Resale)","130138854","21/10/2016","Visitor Economy","Art Gallery Tea Room","R4102"
"Wolverhampton City Council","http://opendatacommunities.org/id/metropolitan-district-council/wolverhampton","M.K.G. (Food Products) Limited","976962","52.37","Provisions (Resale)","130138841","21/10/2016","Visitor Economy","Bantock - Tea Rooms","R4102"
"Wolverhampton City Council","http://opendatacommunities.org/id/metropolitan-district-council/wolverhampton","M.K.G. (Food Products) Limited","976962","174.90","Provisions (Resale)","130138841","21/10/2016","Visitor Economy","Bantock - Tea Rooms","R4102"
"Wolverhampton City Council","http://opendatacommunities.org/id/metropolitan-district-council/wolverhampton","M.K.G. (Food Products) Limited","987638","6.52","Provisions (Resale)","130139387","21/10/2016","Visitor Economy","Art Gallery Tea Room","R4102"
"Wolverhampton City Council","http://opendatacommunities.org/id/metropolitan-district-council/wolverhampton","M.K.G. (Food Products) Limited","987638","186.53","Provisions (Resale)","130139387","21/10/2016","Visitor Economy","Art Gallery Tea Room","R4102"
"Wolverhampton City Council","http://opendatacommunities.org/id/metropolitan-district-council/wolverhampton","M.K.G. (Food Products) Limited","983301","208.78","Provisions (Resale)","130138843","21/10/2016","Visitor Economy","Bantock - Tea Rooms","R4102"
"Wolverhampton City Council","http://opendatacommunities.org/id/metropolitan-district-council/wolverhampton","M.K.G. (Food Products) Limited","985182","90.58","Provisions (Resale)","130138851","21/10/2016","Visitor Economy","Art Gallery Tea Room","R4102"
"Wolverhampton City Council","http://opendatacommunities.org/id/metropolitan-district-council/wolverhampton","M.K.G. (Food Products) Limited","984794","412.42","Provisions (Resale)","130138850","21/10/2016","Visitor Economy","Bantock - Tea Rooms","R4102"
"Wolverhampton City Council","http://opendatacommunities.org/id/metropolitan-district-council/wolverhampton","M.K.G. (Food Products) Limited","984780","82.94","Provisions (Resale)","130138849","21/10/2016","Visitor Economy","Art Gallery Tea Room","R4102"
"Wolverhampton City Council","http://opendatacommunities.org/id/metropolitan-district-council/wolverhampton","M.K.G. (Food Products) Limited","986406","24.75","Provisions (Resale)","130138855","21/10/2016","Visitor Economy","Bantock - Tea Rooms","R4102"
"Wolverhampton City Council","http://opendatacommunities.org/id/metropolitan-district-council/wolverhampton","M.K.G. (Food Products) Limited","986406","388.17","Provisions (Resale)","130138855","21/10/2016","Visitor Economy","Bantock - Tea Rooms","R4102"
"Wolverhampton City Council","http://opendatacommunities.org/id/metropolitan-district-council/wolverhampton","M.K.G. (Food Products) Limited","985815","29.31","Provisions (Resale)","130138853","21/10/2016","Visitor Economy","Bantock - Tea Rooms","R4102"
"Wolverhampton City Council","http://opendatacommunities.org/id/metropolitan-district-council/wolverhampton","M.K.G. (Food Products) Limited","985815","534.17","Provisions (Resale)","130138853","21/10/2016","Visitor Economy","Bantock - Tea Rooms","R4102"
"Wolverhampton City Council","http://opendatacommunities.org/id/metropolitan-district-council/wolverhampton","M.K.G. (Food Products) Limited","986408","152.40","Provisions (Resale)","130138856","21/10/2016","Visitor Economy","Art Gallery Tea Room","R4102"
"Wolverhampton City Council","http://opendatacommunities.org/id/metropolitan-district-council/wolverhampton","M.K.G. (Food Products) Limited","987637","148.28","Provisions (Resale)","130139386","21/10/2016","Visitor Economy","Bantock - Tea Rooms","R4102"
"Wolverhampton City Council","http://opendatacommunities.org/id/metropolitan-district-council/wolverhampton","M.K.G. (Food Products) Limited","984454","380.72","Provisions (Resale)","130138847","21/10/2016","Visitor Economy","Bantock - Tea Rooms","R4102"
"Wolverhampton City Council","http://opendatacommunities.org/id/metropolitan-district-council/wolverhampton","M.K.G. (Food Products) Limited","984054","45.73","Provisions (Resale)","130138846","21/10/2016","Visitor Economy","Bantock - Tea Rooms","R4102"
"Wolverhampton City Council","http://opendatacommunities.org/id/metropolitan-district-council/wolverhampton","M.K.G. (Food Products) Limited","984054","278.41","Provisions (Resale)","130138846","21/10/2016","Visitor Economy","Bantock - Tea Rooms","R4102"
"Wolverhampton City Council","http://opendatacommunities.org/id/metropolitan-district-council/wolverhampton","M.K.G. (Food Products) Limited","977685","291.56","Provisions (Resale)","130138842","21/10/2016","Visitor Economy","Bantock - Tea Rooms","R4102"
"Wolverhampton City Council","http://opendatacommunities.org/id/metropolitan-district-council/wolverhampton","M.K.G. (Food Products) Limited","977685","-291.56","Provisions (Resale)","130138842","21/10/2016","Visitor Economy","Bantock - Tea Rooms","R4102"
"Wolverhampton City Council","http://opendatacommunities.org/id/metropolitan-district-council/wolverhampton","M.K.G. (Food Products) Limited","977685","5.42","Provisions (Resale)","130138842","21/10/2016","Visitor Economy","Bantock - Tea Rooms","R4102"
"Wolverhampton City Council","http://opendatacommunities.org/id/metropolitan-district-council/wolverhampton","M.K.G. (Food Products) Limited","977685","286.14","Provisions (Resale)","130138842","21/10/2016","Visitor Economy","Bantock - Tea Rooms","R4102"
"Wolverhampton City Council","http://opendatacommunities.org/id/metropolitan-district-council/wolverhampton","M.K.G. (Food Products) Limited","984054","324.14","Provisions (Resale)","130138846","21/10/2016","Visitor Economy","Bantock - Tea Rooms","R4102"
"Wolverhampton City Council","http://opendatacommunities.org/id/metropolitan-district-council/wolverhampton","M.K.G. (Food Products) Limited","984054","-324.14","Provisions (Resale)","130138846","21/10/2016","Visitor Economy","Bantock - Tea Rooms","R4102"
"Wolverhampton City Council","http://opendatacommunities.org/id/metropolitan-district-council/wolverhampton","M.K.G. (Food Products) Limited","986796","160.60","Provisions (Resale)","130139384","21/10/2016","Visitor Economy","Art Gallery Tea Room","R4102"
"Wolverhampton City Council","http://opendatacommunities.org/id/metropolitan-district-council/wolverhampton","M.K.G. (Food Products) Limited","986796","-160.60","Provisions (Resale)","130139384","21/10/2016","Visitor Economy","Art Gallery Tea Room","R4102"
"Wolverhampton City Council","http://opendatacommunities.org/id/metropolitan-district-council/wolverhampton","M.K.G. (Food Products) Limited","986796","18.15","Provisions (Resale)","130139384","21/10/2016","Visitor Economy","Art Gallery Tea Room","R4102"
"Wolverhampton City Council","http://opendatacommunities.org/id/metropolitan-district-council/wolverhampton","M.K.G. (Food Products) Limited","986796","142.45","Provisions (Resale)","130139384","21/10/2016","Visitor Economy","Art Gallery Tea Room","R4102"
"Wolverhampton City Council","http://opendatacommunities.org/id/metropolitan-district-council/wolverhampton","M.K.G. (Food Products) Limited","984455","133.42","Provisions (Resale)","130138848","21/10/2016","Visitor Economy","Art Gallery Tea Room","R4102"
"Wolverhampton City Council","http://opendatacommunities.org/id/metropolitan-district-council/wolverhampton","M.K.G. (Food Products) Limited","983691","134.54","Provisions (Resale)","130138845","21/10/2016","Visitor Economy","Art Gallery Tea Room","R4102"
"Wolverhampton City Council","http://opendatacommunities.org/id/metropolitan-district-council/wolverhampton","M.K.G. (Food Products) Limited","986794","433.11","Provisions (Resale)","130139383","21/10/2016","Visitor Economy","Bantock - Tea Rooms","R4102"
"Wolverhampton City Council","http://opendatacommunities.org/id/metropolitan-district-council/wolverhampton","M.K.G. (Food Products) Limited","986794","-433.11","Provisions (Resale)","130139383","21/10/2016","Visitor Economy","Bantock - Tea Rooms","R4102"
"Wolverhampton City Council","http://opendatacommunities.org/id/metropolitan-district-council/wolverhampton","M.K.G. (Food Products) Limited","986794","116.19","Provisions (Resale)","130139383","21/10/2016","Visitor Economy","Bantock - Tea Rooms","R4102"
"Wolverhampton City Council","http://opendatacommunities.org/id/metropolitan-district-council/wolverhampton","M.K.G. (Food Products) Limited","986794","316.92","Provisions (Resale)","130139383","21/10/2016","Visitor Economy","Bantock - Tea Rooms","R4102"
"Wolverhampton City Council","http://opendatacommunities.org/id/metropolitan-district-council/wolverhampton","M.K.G. (Food Products) Limited","983689","438.38","Provisions (Resale)","130138844","21/10/2016","Visitor Economy","Bantock - Tea Rooms","R4102"
"Wolverhampton City Council","http://opendatacommunities.org/id/metropolitan-district-council/wolverhampton","M.K.G. (Food Products) Limited","983689","-438.38","Provisions (Resale)","130138844","21/10/2016","Visitor Economy","Bantock - Tea Rooms","R4102"
"Wolverhampton City Council","http://opendatacommunities.org/id/metropolitan-district-council/wolverhampton","M.K.G. (Food Products) Limited","983689","432.96","Provisions (Resale)","130138844","21/10/2016","Visitor Economy","Bantock - Tea Rooms","R4102"
"Wolverhampton City Council","http://opendatacommunities.org/id/metropolitan-district-council/wolverhampton","M.K.G. (Food Products) Limited","983689","5.42","Provisions (Resale)","130138844","21/10/2016","Visitor Economy","Bantock - Tea Rooms","R4102"
"Wolverhampton City Council","http://opendatacommunities.org/id/metropolitan-district-council/wolverhampton","M.K.G. (Food Products) Limited","986406","412.92","Provisions (Resale)","130138855","21/10/2016","Visitor Economy","Bantock - Tea Rooms","R4102"
"Wolverhampton City Council","http://opendatacommunities.org/id/metropolitan-district-council/wolverhampton","M.K.G. (Food Products) Limited","986406","-412.92","Provisions (Resale)","130138855","21/10/2016","Visitor Economy","Bantock - Tea Rooms","R4102"
"Wolverhampton City Council","http://opendatacommunities.org/id/metropolitan-district-council/wolverhampton","M.K.G. (Food Products) Limited","985817","-225.42","Provisions (Resale)","130138854","21/10/2016","Visitor Economy","Art Gallery Tea Room","R4102"
"Wolverhampton City Council","http://opendatacommunities.org/id/metropolitan-district-council/wolverhampton","M.K.G. (Food Products) Limited","985817","3.27","Provisions (Resale)","130138854","21/10/2016","Visitor Economy","Art Gallery Tea Room","R4102"
"Wolverhampton City Council","http://opendatacommunities.org/id/metropolitan-district-council/wolverhampton","M.K.G. (Food Products) Limited","985817","222.15","Provisions (Resale)","130138854","21/10/2016","Visitor Economy","Art Gallery Tea Room","R4102"
"Wolverhampton City Council","http://opendatacommunities.org/id/metropolitan-district-council/wolverhampton","M.K.G. (Food Products) Limited","987248","262.14","Provisions (Resale)","130139385","21/10/2016","Visitor Economy","Bantock - Tea Rooms","R4102"
"Wolverhampton City Council","http://opendatacommunities.org/id/metropolitan-district-council/wolverhampton","M.K.G. (Food Products) Limited","987248","-262.14","Provisions (Resale)","130139385","21/10/2016","Visitor Economy","Bantock - Tea Rooms","R4102"
"Wolverhampton City Council","http://opendatacommunities.org/id/metropolitan-district-council/wolverhampton","M.K.G. (Food Products) Limited","987248","262.14","Provisions (Resale)","130139385","21/10/2016","Visitor Economy","Bantock - Tea Rooms","R4102"
"Wolverhampton City Council","http://opendatacommunities.org/id/metropolitan-district-council/wolverhampton","M.K.G. (Food Products) Limited","989037","76.45","Provisions (Resale)","130139391","21/10/2016","Visitor Economy","Bantock - Tea Rooms","R4102"
"Wolverhampton City Council","http://opendatacommunities.org/id/metropolitan-district-council/wolverhampton","M.K.G. (Food Products) Limited","988191","330.95","Provisions (Resale)","130139388","21/10/2016","Visitor Economy","Bantock - Tea Rooms","R4102"
"Wolverhampton City Council","http://opendatacommunities.org/id/metropolitan-district-council/wolverhampton","M.K.G. (Food Products) Limited","988191","-330.95","Provisions (Resale)","130139388","21/10/2016","Visitor Economy","Bantock - Tea Rooms","R4102"
"Wolverhampton City Council","http://opendatacommunities.org/id/metropolitan-district-council/wolverhampton","M.K.G. (Food Products) Limited","988191","54.91","Provisions (Resale)","130139388","21/10/2016","Visitor Economy","Bantock - Tea Rooms","R4102"
"Wolverhampton City Council","http://opendatacommunities.org/id/metropolitan-district-council/wolverhampton","M.K.G. (Food Products) Limited","988191","276.04","Provisions (Resale)","130139388","21/10/2016","Visitor Economy","Bantock - Tea Rooms","R4102"
"Wolverhampton City Council","http://opendatacommunities.org/id/metropolitan-district-council/wolverhampton","M.K.G. (Food Products) Limited","987638","193.05","Provisions (Resale)","130139387","21/10/2016","Visitor Economy","Art Gallery Tea Room","R4102"
"Wolverhampton City Council","http://opendatacommunities.org/id/metropolitan-district-council/wolverhampton","M.K.G. (Food Products) Limited","987638","-193.05","Provisions (Resale)","130139387","21/10/2016","Visitor Economy","Art Gallery Tea Room","R4102"
"Wolverhampton City Council","http://opendatacommunities.org/id/metropolitan-district-council/wolverhampton","M.K.G. (Food Products) Limited","988578","214.38","Provisions (Resale)","130139389","21/10/2016","Visitor Economy","Bantock - Tea Rooms","R4102"
"Wolverhampton City Council","http://opendatacommunities.org/id/metropolitan-district-council/wolverhampton","M.K.G. (Food Products) Limited","988578","-214.38","Provisions (Resale)","130139389","21/10/2016","Visitor Economy","Bantock - Tea Rooms","R4102"
"Wolverhampton City Council","http://opendatacommunities.org/id/metropolitan-district-council/wolverhampton","M.K.G. (Food Products) Limited","988578","214.38","Provisions (Resale)","130139389","21/10/2016","Visitor Economy","Bantock - Tea Rooms","R4102"
"Wolverhampton City Council","http://opendatacommunities.org/id/metropolitan-district-council/wolverhampton","M.K.G. (Food Products) Limited","984455","-133.42","Provisions (Resale)","130138848","21/10/2016","Visitor Economy","Art Gallery Tea Room","R4102"
"Wolverhampton City Council","http://opendatacommunities.org/id/metropolitan-district-council/wolverhampton","M.K.G. (Food Products) Limited","984455","14.88","Provisions (Resale)","130138848","21/10/2016","Visitor Economy","Art Gallery Tea Room","R4102"
"Wolverhampton City Council","http://opendatacommunities.org/id/metropolitan-district-council/wolverhampton","M.K.G. (Food Products) Limited","984455","118.54","Provisions (Resale)","130138848","21/10/2016","Visitor Economy","Art Gallery Tea Room","R4102"
"Wolverhampton City Council","http://opendatacommunities.org/id/metropolitan-district-council/wolverhampton","M.K.G. (Food Products) Limited","987637","-148.28","Provisions (Resale)","130139386","21/10/2016","Visitor Economy","Bantock - Tea Rooms","R4102"
"Wolverhampton City Council","http://opendatacommunities.org/id/metropolitan-district-council/wolverhampton","M.K.G. (Food Products) Limited","987637","27.92","Provisions (Resale)","130139386","21/10/2016","Visitor Economy","Bantock - Tea Rooms","R4102"
"Wolverhampton City Council","http://opendatacommunities.org/id/metropolitan-district-council/wolverhampton","M.K.G. (Food Products) Limited","987637","120.36","Provisions (Resale)","130139386","21/10/2016","Visitor Economy","Bantock - Tea Rooms","R4102"
"Wolverhampton City Council","http://opendatacommunities.org/id/metropolitan-district-council/wolverhampton","M.K.G. (Food Products) Limited","988579","155.46","Provisions (Resale)","130139390","21/10/2016","Visitor Economy","Art Gallery Tea Room","R4102"
"Wolverhampton City Council","http://opendatacommunities.org/id/metropolitan-district-council/wolverhampton","M.K.G. (Food Products) Limited","988579","-155.46","Provisions (Resale)","130139390","21/10/2016","Visitor Economy","Art Gallery Tea Room","R4102"
"Wolverhampton City Council","http://opendatacommunities.org/id/metropolitan-district-council/wolverhampton","M.K.G. (Food Products) Limited","988579","67.02","Provisions (Resale)","130139390","21/10/2016","Visitor Economy","Art Gallery Tea Room","R4102"
"Wolverhampton City Council","http://opendatacommunities.org/id/metropolitan-district-council/wolverhampton","M.K.G. (Food Products) Limited","988579","88.44","Provisions (Resale)","130139390","21/10/2016","Visitor Economy","Art Gallery Tea Room","R4102"
"Wolverhampton City Council","http://opendatacommunities.org/id/metropolitan-district-council/wolverhampton","M.K.G. (Food Products) Limited","990385","151.54","Provisions (Resale)","130139396","21/10/2016","Visitor Economy","Art Gallery Tea Room","R4102"
"Wolverhampton City Council","http://opendatacommunities.org/id/metropolitan-district-council/wolverhampton","M.K.G. (Food Products) Limited","990385","-151.54","Provisions (Resale)","130139396","21/10/2016","Visitor Economy","Art Gallery Tea Room","R4102"
"Wolverhampton City Council","http://opendatacommunities.org/id/metropolitan-district-council/wolverhampton","M.K.G. (Food Products) Limited","990385","102.42","Provisions (Resale)","130139396","21/10/2016","Visitor Economy","Art Gallery Tea Room","R4102"
"Wolverhampton City Council","http://opendatacommunities.org/id/metropolitan-district-council/wolverhampton","M.K.G. (Food Products) Limited","990385","49.12","Provisions (Resale)","130139396","21/10/2016","Visitor Economy","Art Gallery Tea Room","R4102"
"Wolverhampton City Council","http://opendatacommunities.org/id/metropolitan-district-council/wolverhampton","M.K.G. (Food Products) Limited","989511","308.59","Provisions (Resale)","130139392","21/10/2016","Visitor Economy","Bantock - Tea Rooms","R4102"
"Wolverhampton City Council","http://opendatacommunities.org/id/metropolitan-district-council/wolverhampton","M.K.G. (Food Products) Limited","989511","-308.59","Provisions (Resale)","130139392","21/10/2016","Visitor Economy","Bantock - Tea Rooms","R4102"
"Wolverhampton City Council","http://opendatacommunities.org/id/metropolitan-district-council/wolverhampton","M.K.G. (Food Products) Limited","989511","5.42","Provisions (Resale)","130139392","21/10/2016","Visitor Economy","Bantock - Tea Rooms","R4102"
"Wolverhampton City Council","http://opendatacommunities.org/id/metropolitan-district-council/wolverhampton","M.K.G. (Food Products) Limited","989511","303.17","Provisions (Resale)","130139392","21/10/2016","Visitor Economy","Bantock - Tea Rooms","R4102"
"Wolverhampton City Council","http://opendatacommunities.org/id/metropolitan-district-council/wolverhampton","M.K.G. (Food Products) Limited","990825","118.08","Provisions (Resale)","130139398","21/10/2016","Visitor Economy","Art Gallery Tea Room","R4102"
"Wolverhampton City Council","http://opendatacommunities.org/id/metropolitan-district-council/wolverhampton","M.K.G. (Food Products) Limited","989514","260.94","Provisions (Resale)","130139393","21/10/2016","Visitor Economy","Art Gallery Tea Room","R4102"
"Wolverhampton City Council","http://opendatacommunities.org/id/metropolitan-district-council/wolverhampton","M.K.G. (Food Products) Limited","989514","-260.94","Provisions (Resale)","130139393","21/10/2016","Visitor Economy","Art Gallery Tea Room","R4102"
"Wolverhampton City Council","http://opendatacommunities.org/id/metropolitan-district-council/wolverhampton","M.K.G. (Food Products) Limited","989514","117.84","Provisions (Resale)","130139393","21/10/2016","Visitor Economy","Art Gallery Tea Room","R4102"
"Wolverhampton City Council","http://opendatacommunities.org/id/metropolitan-district-council/wolverhampton","M.K.G. (Food Products) Limited","989514","143.10","Provisions (Resale)","130139393","21/10/2016","Visitor Economy","Art Gallery Tea Room","R4102"
"Wolverhampton City Council","http://opendatacommunities.org/id/metropolitan-district-council/wolverhampton","M.K.G. (Food Products) Limited","990384","223.14","Provisions (Resale)","130139395","21/10/2016","Visitor Economy","Bantock - Tea Rooms","R4102"
"Wolverhampton City Council","http://opendatacommunities.org/id/metropolitan-district-council/wolverhampton","M.K.G. (Food Products) Limited","990384","-223.14","Provisions (Resale)","130139395","21/10/2016","Visitor Economy","Bantock - Tea Rooms","R4102"
"Wolverhampton City Council","http://opendatacommunities.org/id/metropolitan-district-council/wolverhampton","M.K.G. (Food Products) Limited","990384","223.14","Provisions (Resale)","130139395","21/10/2016","Visitor Economy","Bantock - Tea Rooms","R4102"
"Wolverhampton City Council","http://opendatacommunities.org/id/metropolitan-district-council/wolverhampton","M.K.G. (Food Products) Limited","989037","-76.45","Provisions (Resale)","130139391","21/10/2016","Visitor Economy","Bantock - Tea Rooms","R4102"
"Wolverhampton City Council","http://opendatacommunities.org/id/metropolitan-district-council/wolverhampton","M.K.G. (Food Products) Limited","989037","6.50","Provisions (Resale)","130139391","21/10/2016","Visitor Economy","Bantock - Tea Rooms","R4102"
"Wolverhampton City Council","http://opendatacommunities.org/id/metropolitan-district-council/wolverhampton","M.K.G. (Food Products) Limited","989037","69.95","Provisions (Resale)","130139391","21/10/2016","Visitor Economy","Bantock - Tea Rooms","R4102"
"Wolverhampton City Council","http://opendatacommunities.org/id/metropolitan-district-council/wolverhampton","M.K.G. (Food Products) Limited","989899","249.80","Provisions (Resale)","130139394","21/10/2016","Visitor Economy","Bantock - Tea Rooms","R4102"
"Wolverhampton City Council","http://opendatacommunities.org/id/metropolitan-district-council/wolverhampton","M.K.G. (Food Products) Limited","989899","-249.80","Provisions (Resale)","130139394","21/10/2016","Visitor Economy","Bantock - Tea Rooms","R4102"
"Wolverhampton City Council","http://opendatacommunities.org/id/metropolitan-district-council/wolverhampton","M.K.G. (Food Products) Limited","989899","249.80","Provisions (Resale)","130139394","21/10/2016","Visitor Economy","Bantock - Tea Rooms","R4102"
"Wolverhampton City Council","http://opendatacommunities.org/id/metropolitan-district-council/wolverhampton","M.K.G. (Food Products) Limited","991304","62.61","Provisions (Resale)","130139400","21/10/2016","Visitor Economy","Art Gallery Tea Room","R4102"
"Wolverhampton City Council","http://opendatacommunities.org/id/metropolitan-district-council/wolverhampton","M.K.G. (Food Products) Limited","990823","282.30","Provisions (Resale)","130139397","21/10/2016","Visitor Economy","Bantock - Tea Rooms","R4102"
"Wolverhampton City Council","http://opendatacommunities.org/id/metropolitan-district-council/wolverhampton","M.K.G. (Food Products) Limited","990825","-118.08","Provisions (Resale)","130139398","21/10/2016","Visitor Economy","Art Gallery Tea Room","R4102"
"Wolverhampton City Council","http://opendatacommunities.org/id/metropolitan-district-council/wolverhampton","M.K.G. (Food Products) Limited","990825","14.88","Provisions (Resale)","130139398","21/10/2016","Visitor Economy","Art Gallery Tea Room","R4102"
"Wolverhampton City Council","http://opendatacommunities.org/id/metropolitan-district-council/wolverhampton","M.K.G. (Food Products) Limited","990825","103.20","Provisions (Resale)","130139398","21/10/2016","Visitor Economy","Art Gallery Tea Room","R4102"
"Wolverhampton City Council","http://opendatacommunities.org/id/metropolitan-district-council/wolverhampton","M.K.G. (Food Products) Limited","990823","-282.30","Provisions (Resale)","130139397","21/10/2016","Visitor Economy","Bantock - Tea Rooms","R4102"
"Wolverhampton City Council","http://opendatacommunities.org/id/metropolitan-district-council/wolverhampton","M.K.G. (Food Products) Limited","990823","276.88","Provisions (Resale)","130139397","21/10/2016","Visitor Economy","Bantock - Tea Rooms","R4102"
"Wolverhampton City Council","http://opendatacommunities.org/id/metropolitan-district-council/wolverhampton","M.K.G. (Food Products) Limited","990823","5.42","Provisions (Resale)","130139397","21/10/2016","Visitor Economy","Bantock - Tea Rooms","R4102"
"Wolverhampton City Council","http://opendatacommunities.org/id/metropolitan-district-council/wolverhampton","M.K.G. (Food Products) Limited","991304","179.51","Provisions (Resale)","130139400","21/10/2016","Visitor Economy","Art Gallery Tea Room","R4102"
"Wolverhampton City Council","http://opendatacommunities.org/id/metropolitan-district-council/wolverhampton","M.K.G. (Food Products) Limited","991304","-179.51","Provisions (Resale)","130139400","21/10/2016","Visitor Economy","Art Gallery Tea Room","R4102"
"Wolverhampton City Council","http://opendatacommunities.org/id/metropolitan-district-council/wolverhampton","M.K.G. (Food Products) Limited","991304","116.90","Provisions (Resale)","130139400","21/10/2016","Visitor Economy","Art Gallery Tea Room","R4102"
"Wolverhampton City Council","http://opendatacommunities.org/id/metropolitan-district-council/wolverhampton","M.K.G. (Food Products) Limited","991302","204.01","Provisions (Resale)","130139399","21/10/2016","Visitor Economy","Bantock - Tea Rooms","R4102"
"Wolverhampton City Council","http://opendatacommunities.org/id/metropolitan-district-council/wolverhampton","M.K.G. (Food Products) Limited","991302","-204.01","Provisions (Resale)","130139399","21/10/2016","Visitor Economy","Bantock - Tea Rooms","R4102"
"Wolverhampton City Council","http://opendatacommunities.org/id/metropolitan-district-council/wolverhampton","M.K.G. (Food Products) Limited","991302","31.04","Provisions (Resale)","130139399","21/10/2016","Visitor Economy","Bantock - Tea Rooms","R4102"
"Wolverhampton City Council","http://opendatacommunities.org/id/metropolitan-district-council/wolverhampton","M.K.G. (Food Products) Limited","991302","172.97","Provisions (Resale)","130139399","21/10/2016","Visitor Economy","Bantock - Tea Rooms","R4102"
"Wolverhampton City Council","http://opendatacommunities.org/id/metropolitan-district-council/wolverhampton","Machine Mart Limited","608894","24.99","Equipment - Purchase","190274681","12/10/2016","Fleet Services","Fleet Management","R4000"
"Wolverhampton City Council","http://opendatacommunities.org/id/metropolitan-district-council/wolverhampton","Mail Solutions UK Limited","329538","614.50","Stationery","130139584","07/10/2016","Revenues & Benefits","Revenues","R4308"
"Wolverhampton City Council","http://opendatacommunities.org/id/metropolitan-district-council/wolverhampton","Mail Solutions UK Limited","330959","84.67","Printing","130142203","26/10/2016","ICTS","Document Centre - General","R4300"
"Wolverhampton City Council","http://opendatacommunities.org/id/metropolitan-district-council/wolverhampton","Mail Solutions UK Limited","330363","447.80","Printing","130140644","12/10/2016","ICTS","Document Centre - General","R4300"
"Wolverhampton City Council","http://opendatacommunities.org/id/metropolitan-district-council/wolverhampton","Mail Solutions UK Limited","330960","115.75","Printing","130141622","19/10/2016","ICTS","Document Centre - General","R4300"
"Wolverhampton City Council","http://opendatacommunities.org/id/metropolitan-district-council/wolverhampton","Mail Solutions UK Limited","330534","67.40","Printing","130140645","14/10/2016","ICTS","Document Centre - General","R4300"
"Wolverhampton City Council","http://opendatacommunities.org/id/metropolitan-district-council/wolverhampton","Main Street Signs Limited","8350","6,103.60","Materials","130142020","26/10/2016","Highways Maintenance","Street Seats & Nameplates","R4007"
"Wolverhampton City Council","http://opendatacommunities.org/id/metropolitan-district-council/wolverhampton","Maintenance Components Limited","107745","2.80","Equipment - Purchase","190275231","14/10/2016","Fleet Services","Fleet Management","R4000"
"Wolverhampton City Council","http://opendatacommunities.org/id/metropolitan-district-council/wolverhampton","Maintenance Components Limited","107745","2.38","Equipment - Purchase","190275231","14/10/2016","Fleet Services","Fleet Management","R4000"
"Wolverhampton City Council","http://opendatacommunities.org/id/metropolitan-district-council/wolverhampton","Maintenance Components Limited","107745","19.36","Equipment - Purchase","190275231","14/10/2016","Fleet Services","Fleet Management","R4000"
"Wolverhampton City Council","http://opendatacommunities.org/id/metropolitan-district-council/wolverhampton","Maintenance Components Limited","107745","3.91","Equipment - Purchase","190275231","14/10/2016","Fleet Services","Fleet Management","R4000"
"Wolverhampton City Council","http://opendatacommunities.org/id/metropolitan-district-council/wolverhampton","Maintenance Components Limited","107745","4.19","Equipment - Purchase","190275231","14/10/2016","Fleet Services","Fleet Management","R4000"
"Wolverhampton City Council","http://opendatacommunities.org/id/metropolitan-district-council/wolverhampton","Maintenance Components Limited","107745","4.46","Equipment - Purchase","190275231","14/10/2016","Fleet Services","Fleet Management","R4000"
"Wolverhampton City Council","http://opendatacommunities.org/id/metropolitan-district-council/wolverhampton","Maintenance Components Limited","107745","6.89","Equipment - Purchase","190275231","14/10/2016","Fleet Services","Fleet Management","R4000"
"Wolverhampton City Council","http://opendatacommunities.org/id/metropolitan-district-council/wolverhampton","Maintenance Components Limited","107745","6.50","Equipment - Purchase","190275231","14/10/2016","Fleet Services","Fleet Management","R4000"
"Wolverhampton City Council","http://opendatacommunities.org/id/metropolitan-district-council/wolverhampton","Maintenance Components Limited","107745","5.57","Equipment - Purchase","190275231","14/10/2016","Fleet Services","Fleet Management","R4000"
"Wolverhampton City Council","http://opendatacommunities.org/id/metropolitan-district-council/wolverhampton","Maintenance Components Limited","107745","4.15","Equipment - Purchase","190275231","14/10/2016","Fleet Services","Fleet Management","R4000"
"Wolverhampton City Council","http://opendatacommunities.org/id/metropolitan-district-council/wolverhampton","Maintenance Components Limited","107745","14.54","Equipment - Purchase","190275231","14/10/2016","Fleet Services","Fleet Management","R4000"
"Wolverhampton City Council","http://opendatacommunities.org/id/metropolitan-district-council/wolverhampton","Maintenance Components Limited","107745","4.84","Equipment - Purchase","190275231","14/10/2016","Fleet Services","Fleet Management","R4000"
"Wolverhampton City Council","http://opendatacommunities.org/id/metropolitan-district-council/wolverhampton","Maintenance Components Limited","107745","3.20","Equipment - Purchase","190275231","14/10/2016","Fleet Services","Fleet Management","R4000"
"Wolverhampton City Council","http://opendatacommunities.org/id/metropolitan-district-council/wolverhampton","Maintenance Components Limited","107745","3.54","Equipment - Purchase","190275231","14/10/2016","Fleet Services","Fleet Management","R4000"
"Wolverhampton City Council","http://opendatacommunities.org/id/metropolitan-district-council/wolverhampton","Maintenance Components Limited","107745","3.63","Equipment - Purchase","190275231","14/10/2016","Fleet Services","Fleet Management","R4000"
"Wolverhampton City Council","http://opendatacommunities.org/id/metropolitan-district-council/wolverhampton","Maintenance Components Limited","107745","8.71","Equipment - Purchase","190275231","14/10/2016","Fleet Services","Fleet Management","R4000"
"Wolverhampton City Council","http://opendatacommunities.org/id/metropolitan-district-council/wolverhampton","Mark Education Limited","2227599","165.10","Agency Staff","130141746","26/10/2016","Early Intervention","EIP Locality 3","R1100"
"Wolverhampton City Council","http://opendatacommunities.org/id/metropolitan-district-council/wolverhampton","Mark Education Limited","2224179","152.40","Agency Staff","130141743","21/10/2016","Early Intervention","EIP Locality 3","R1100"
"Wolverhampton City Council","http://opendatacommunities.org/id/metropolitan-district-council/wolverhampton","Mark Education Limited","2224647","152.40","Agency Staff","130141744","21/10/2016","Early Intervention","EIP Locality 3","R1100"
"Wolverhampton City Council","http://opendatacommunities.org/id/metropolitan-district-council/wolverhampton","Mark Education Limited","2227280","69.85","Agency Staff","130141745","21/10/2016","Early Intervention","EIP Locality 3","R1100"
"Wolverhampton City Council","http://opendatacommunities.org/id/metropolitan-district-council/wolverhampton","Marketing Birmingham","SIN010311","8,500.00","Marketing \ Non-staff advertising","130136562","07/10/2016","Strategic Director Place","Strategic Director Place","R4317"
"Wolverhampton City Council","http://opendatacommunities.org/id/metropolitan-district-council/wolverhampton","Mars Drinks UK Limited","93473875","93.42","Services - Supplies and Services to service users","130138565","14/10/2016","Learning Disability Provider","Community Enablement","R4408"
"Wolverhampton City Council","http://opendatacommunities.org/id/metropolitan-district-council/wolverhampton","Mars Drinks UK Limited","93473875","-93.42","Services - Supplies and Services to service users","130138565","14/10/2016","Learning Disability Provider","Community Enablement","R4408"
"Wolverhampton City Council","http://opendatacommunities.org/id/metropolitan-district-council/wolverhampton","Mars Drinks UK Limited","93473875","12.50","Services - Supplies and Services to service users","130138565","14/10/2016","Learning Disability Provider","Community Enablement","R4408"
"Wolverhampton City Council","http://opendatacommunities.org/id/metropolitan-district-council/wolverhampton","Mars Drinks UK Limited","93473875","80.92","Services - Supplies and Services to service users","130138565","14/10/2016","Learning Disability Provider","Community Enablement","R4408"
"Wolverhampton City Council","http://opendatacommunities.org/id/metropolitan-district-council/wolverhampton","Marstons PLC","96978151","8,115.25","Provisions (Resale)","130137714","07/10/2016","Visitor Economy","Catering Overhead Account","R4102"
"Wolverhampton City Council","http://opendatacommunities.org/id/metropolitan-district-council/wolverhampton","Marstons PLC","96993017","780.10","Provisions (Resale)","130139382","26/10/2016","Visitor Economy","The Little Civic","R4102"
"Wolverhampton City Council","http://opendatacommunities.org/id/metropolitan-district-council/wolverhampton","Marstons PLC","96992930","803.44","Provisions (Resale)","130139381","26/10/2016","Visitor Economy","Catering Overhead Account","R4102"
"Wolverhampton City Council","http://opendatacommunities.org/id/metropolitan-district-council/wolverhampton","Marstons PLC","96985228","974.28","Provisions (Resale)","130138566","14/10/2016","Visitor Economy","The Little Civic","R4102"
"Wolverhampton City Council","http://opendatacommunities.org/id/metropolitan-district-council/wolverhampton","Martyn Billings Automotive","20030","6.20","Services - Professional Fees","190277643","21/10/2016","Fleet Services","Fleet Management","R4400"
"Wolverhampton City Council","http://opendatacommunities.org/id/metropolitan-district-council/wolverhampton","Martyn Billings Automotive","20030","9.00","Services - Professional Fees","190277643","21/10/2016","Fleet Services","Fleet Management","R4400"
"Wolverhampton City Council","http://opendatacommunities.org/id/metropolitan-district-council/wolverhampton","Martyn Billings Automotive","20030","122.50","Services - Professional Fees","190277643","21/10/2016","Fleet Services","Fleet Management","R4400"
"Wolverhampton City Council","http://opendatacommunities.org/id/metropolitan-district-council/wolverhampton","Martyn Billings Automotive","20030","32.93","Services - Professional Fees","190277643","21/10/2016","Fleet Services","Fleet Management","R4400"
"Wolverhampton City Council","http://opendatacommunities.org/id/metropolitan-district-council/wolverhampton","Martyn Billings Automotive","20030","4.82","Services - Professional Fees","190277643","21/10/2016","Fleet Services","Fleet Management","R4400"
"Wolverhampton City Council","http://opendatacommunities.org/id/metropolitan-district-council/wolverhampton","Martyn Billings Automotive","20030","0.90","Services - Professional Fees","190277643","21/10/2016","Fleet Services","Fleet Management","R4400"
"Wolverhampton City Council","http://opendatacommunities.org/id/metropolitan-district-council/wolverhampton","Martyn Billings Automotive","20030","13.13","Services - Professional Fees","190277643","21/10/2016","Fleet Services","Fleet Management","R4400"
"Wolverhampton City Council","http://opendatacommunities.org/id/metropolitan-district-council/wolverhampton","Martyn Billings Automotive","20030","59.55","Services - Professional Fees","190277643","21/10/2016","Fleet Services","Fleet Management","R4400"
"Wolverhampton City Council","http://opendatacommunities.org/id/metropolitan-district-council/wolverhampton","Martyn Billings Automotive","20012","14.50","Services - Professional Fees","190275273","14/10/2016","Fleet Services","Fleet Management","R4400"
"Wolverhampton City Council","http://opendatacommunities.org/id/metropolitan-district-council/wolverhampton","Martyn Billings Automotive","20012","35.00","Services - Professional Fees","190275273","14/10/2016","Fleet Services","Fleet Management","R4400"
"Wolverhampton City Council","http://opendatacommunities.org/id/metropolitan-district-council/wolverhampton","Martyn Billings Automotive","20012","40.00","Services - Professional Fees","190275273","14/10/2016","Fleet Services","Fleet Management","R4400"
"Wolverhampton City Council","http://opendatacommunities.org/id/metropolitan-district-council/wolverhampton","Martyn Billings Automotive","20006","5.45","Services - Professional Fees","190275272","14/10/2016","Fleet Services","Fleet Management","R4400"
"Wolverhampton City Council","http://opendatacommunities.org/id/metropolitan-district-council/wolverhampton","Martyn Billings Automotive","19921","20.68","Services - Professional Fees","190275259","14/10/2016","Fleet Services","Fleet Management","R4400"
"Wolverhampton City Council","http://opendatacommunities.org/id/metropolitan-district-council/wolverhampton","Martyn Billings Automotive","19921","18.92","Services - Professional Fees","190275259","14/10/2016","Fleet Services","Fleet Management","R4400"
"Wolverhampton City Council","http://opendatacommunities.org/id/metropolitan-district-council/wolverhampton","Martyn Billings Automotive","19921","105.00","Services - Professional Fees","190275259","14/10/2016","Fleet Services","Fleet Management","R4400"
"Wolverhampton City Council","http://opendatacommunities.org/id/metropolitan-district-council/wolverhampton","Martyn Billings Automotive","19934","6.20","Services - Professional Fees","190275261","14/10/2016","Fleet Services","Fleet Management","R4400"
"Wolverhampton City Council","http://opendatacommunities.org/id/metropolitan-district-council/wolverhampton","Martyn Billings Automotive","19934","52.50","Services - Professional Fees","190275261","14/10/2016","Fleet Services","Fleet Management","R4400"
"Wolverhampton City Council","http://opendatacommunities.org/id/metropolitan-district-council/wolverhampton","Martyn Billings Automotive","19934","5.45","Services - Professional Fees","190275261","14/10/2016","Fleet Services","Fleet Management","R4400"
"Wolverhampton City Council","http://opendatacommunities.org/id/metropolitan-district-council/wolverhampton","Martyn Billings Automotive","19968","0.90","Services - Professional Fees","190275267","14/10/2016","Fleet Services","Fleet Management","R4400"
"Wolverhampton City Council","http://opendatacommunities.org/id/metropolitan-district-council/wolverhampton","Martyn Billings Automotive","19939","140.81","Services - Professional Fees","190275262","14/10/2016","Fleet Services","Fleet Management","R4400"
"Wolverhampton City Council","http://opendatacommunities.org/id/metropolitan-district-council/wolverhampton","Martyn Billings Automotive","19939","14.47","Services - Professional Fees","190275262","14/10/2016","Fleet Services","Fleet Management","R4400"
"Wolverhampton City Council","http://opendatacommunities.org/id/metropolitan-district-council/wolverhampton","Martyn Billings Automotive","19939","16.78","Services - Professional Fees","190275262","14/10/2016","Fleet Services","Fleet Management","R4400"
"Wolverhampton City Council","http://opendatacommunities.org/id/metropolitan-district-council/wolverhampton","Martyn Billings Automotive","19939","3.93","Services - Professional Fees","190275262","14/10/2016","Fleet Services","Fleet Management","R4400"
"Wolverhampton City Council","http://opendatacommunities.org/id/metropolitan-district-council/wolverhampton","Martyn Billings Automotive","19925","6.20","Services - Professional Fees","190275260","14/10/2016","Fleet Services","Fleet Management","R4400"
"Wolverhampton City Council","http://opendatacommunities.org/id/metropolitan-district-council/wolverhampton","Martyn Billings Automotive","19925","4.82","Services - Professional Fees","190275260","14/10/2016","Fleet Services","Fleet Management","R4400"
"Wolverhampton City Council","http://opendatacommunities.org/id/metropolitan-district-council/wolverhampton","Martyn Billings Automotive","19925","4.91","Services - Professional Fees","190275260","14/10/2016","Fleet Services","Fleet Management","R4400"
"Wolverhampton City Council","http://opendatacommunities.org/id/metropolitan-district-council/wolverhampton","Martyn Billings Automotive","19925","52.50","Services - Professional Fees","190275260","14/10/2016","Fleet Services","Fleet Management","R4400"
"Wolverhampton City Council","http://opendatacommunities.org/id/metropolitan-district-council/wolverhampton","Martyn Billings Automotive","19925","59.55","Services - Professional Fees","190275260","14/10/2016","Fleet Services","Fleet Management","R4400"
"Wolverhampton City Council","http://opendatacommunities.org/id/metropolitan-district-council/wolverhampton","Martyn Billings Automotive","19925","13.13","Services - Professional Fees","190275260","14/10/2016","Fleet Services","Fleet Management","R4400"
"Wolverhampton City Council","http://opendatacommunities.org/id/metropolitan-district-council/wolverhampton","Martyn Billings Automotive","19939","3.50","Services - Professional Fees","190275262","14/10/2016","Fleet Services","Fleet Management","R4400"
"Wolverhampton City Council","http://opendatacommunities.org/id/metropolitan-district-council/wolverhampton","Martyn Billings Automotive","19939","79.60","Services - Professional Fees","190275262","14/10/2016","Fleet Services","Fleet Management","R4400"
"Wolverhampton City Council","http://opendatacommunities.org/id/metropolitan-district-council/wolverhampton","Martyn Billings Automotive","19939","105.00","Services - Professional Fees","190275262","14/10/2016","Fleet Services","Fleet Management","R4400"
"Wolverhampton City Council","http://opendatacommunities.org/id/metropolitan-district-council/wolverhampton","Martyn Billings Automotive","19939","23.01","Services - Professional Fees","190275262","14/10/2016","Fleet Services","Fleet Management","R4400"
"Wolverhampton City Council","http://opendatacommunities.org/id/metropolitan-district-council/wolverhampton","Martyn Billings Automotive","19979","23.65","Services - Professional Fees","190275268","14/10/2016","Fleet Services","Fleet Management","R4400"
"Wolverhampton City Council","http://opendatacommunities.org/id/metropolitan-district-council/wolverhampton","Martyn Billings Automotive","19968","45.00","Services - Professional Fees","190275267","14/10/2016","Fleet Services","Fleet Management","R4400"
"Wolverhampton City Council","http://opendatacommunities.org/id/metropolitan-district-council/wolverhampton","Martyn Billings Automotive","19968","35.00","Services - Professional Fees","190275267","14/10/2016","Fleet Services","Fleet Management","R4400"
"Wolverhampton City Council","http://opendatacommunities.org/id/metropolitan-district-council/wolverhampton","Martyn Billings Automotive","19968","6.20","Services - Professional Fees","190275267","14/10/2016","Fleet Services","Fleet Management","R4400"
"Wolverhampton City Council","http://opendatacommunities.org/id/metropolitan-district-council/wolverhampton","Martyn Billings Automotive","19968","1.55","Services - Professional Fees","190275267","14/10/2016","Fleet Services","Fleet Management","R4400"
"Wolverhampton City Council","http://opendatacommunities.org/id/metropolitan-district-council/wolverhampton","Martyn Billings Automotive","19968","5.45","Services - Professional Fees","190275267","14/10/2016","Fleet Services","Fleet Management","R4400"
"Wolverhampton City Council","http://opendatacommunities.org/id/metropolitan-district-council/wolverhampton","Martyn Billings Automotive","19934","1.55","Services - Professional Fees","190275261","14/10/2016","Fleet Services","Fleet Management","R4400"
"Wolverhampton City Council","http://opendatacommunities.org/id/metropolitan-district-council/wolverhampton","Martyn Billings Automotive","19934","14.77","Services - Professional Fees","190275261","14/10/2016","Fleet Services","Fleet Management","R4400"
"Wolverhampton City Council","http://opendatacommunities.org/id/metropolitan-district-council/wolverhampton","Martyn Billings Automotive","19965","45.00","Services - Professional Fees","190275266","14/10/2016","Fleet Services","Fleet Management","R4400"
"Wolverhampton City Council","http://opendatacommunities.org/id/metropolitan-district-council/wolverhampton","Martyn Billings Automotive","19965","1.55","Services - Professional Fees","190275266","14/10/2016","Fleet Services","Fleet Management","R4400"
"Wolverhampton City Council","http://opendatacommunities.org/id/metropolitan-district-council/wolverhampton","Martyn Billings Automotive","19965","20.68","Services - Professional Fees","190275266","14/10/2016","Fleet Services","Fleet Management","R4400"
"Wolverhampton City Council","http://opendatacommunities.org/id/metropolitan-district-council/wolverhampton","Martyn Billings Automotive","19965","18.92","Services - Professional Fees","190275266","14/10/2016","Fleet Services","Fleet Management","R4400"
"Wolverhampton City Council","http://opendatacommunities.org/id/metropolitan-district-council/wolverhampton","Martyn Billings Automotive","19965","105.00","Services - Professional Fees","190275266","14/10/2016","Fleet Services","Fleet Management","R4400"
"Wolverhampton City Council","http://opendatacommunities.org/id/metropolitan-district-council/wolverhampton","Martyn Billings Automotive","19960","66.66","Services - Professional Fees","190275265","14/10/2016","Fleet Services","Fleet Management","R4400"
"Wolverhampton City Council","http://opendatacommunities.org/id/metropolitan-district-council/wolverhampton","Martyn Billings Automotive","19960","105.00","Services - Professional Fees","190275265","14/10/2016","Fleet Services","Fleet Management","R4400"
"Wolverhampton City Council","http://opendatacommunities.org/id/metropolitan-district-council/wolverhampton","Martyn Billings Automotive","19965","6.20","Services - Professional Fees","190275266","14/10/2016","Fleet Services","Fleet Management","R4400"
"Wolverhampton City Council","http://opendatacommunities.org/id/metropolitan-district-council/wolverhampton","Martyn Billings Automotive","19921","6.20","Services - Professional Fees","190275259","14/10/2016","Fleet Services","Fleet Management","R4400"
"Wolverhampton City Council","http://opendatacommunities.org/id/metropolitan-district-council/wolverhampton","Martyn Billings Automotive","19921","45.00","Services - Professional Fees","190275259","14/10/2016","Fleet Services","Fleet Management","R4400"
"Wolverhampton City Council","http://opendatacommunities.org/id/metropolitan-district-council/wolverhampton","Martyn Billings Automotive","19941","35.00","Services - Professional Fees","190275263","14/10/2016","Fleet Services","Fleet Management","R4400"
"Wolverhampton City Council","http://opendatacommunities.org/id/metropolitan-district-council/wolverhampton","Martyn Billings Automotive","19941","1.80","Services - Professional Fees","190275263","14/10/2016","Fleet Services","Fleet Management","R4400"
"Wolverhampton City Council","http://opendatacommunities.org/id/metropolitan-district-council/wolverhampton","Martyn Billings Automotive","19941","5.45","Services - Professional Fees","190275263","14/10/2016","Fleet Services","Fleet Management","R4400"
"Wolverhampton City Council","http://opendatacommunities.org/id/metropolitan-district-council/wolverhampton","Martyn Billings Automotive","19941","6.20","Services - Professional Fees","190275263","14/10/2016","Fleet Services","Fleet Management","R4400"
"Wolverhampton City Council","http://opendatacommunities.org/id/metropolitan-district-council/wolverhampton","Martyn Billings Automotive","19941","45.00","Services - Professional Fees","190275263","14/10/2016","Fleet Services","Fleet Management","R4400"
"Wolverhampton City Council","http://opendatacommunities.org/id/metropolitan-district-council/wolverhampton","Martyn Billings Automotive","19958","87.50","Services - Professional Fees","190275264","14/10/2016","Fleet Services","Fleet Management","R4400"
"Wolverhampton City Council","http://opendatacommunities.org/id/metropolitan-district-council/wolverhampton","Martyn Billings Automotive","19958","3.50","Services - Professional Fees","190275264","14/10/2016","Fleet Services","Fleet Management","R4400"
"Wolverhampton City Council","http://opendatacommunities.org/id/metropolitan-district-council/wolverhampton","Martyn Billings Automotive","19958","154.04","Services - Professional Fees","190275264","14/10/2016","Fleet Services","Fleet Management","R4400"
"Wolverhampton City Council","http://opendatacommunities.org/id/metropolitan-district-council/wolverhampton","Martyn Billings Automotive","19958","23.75","Services - Professional Fees","190275264","14/10/2016","Fleet Services","Fleet Management","R4400"
"Wolverhampton City Council","http://opendatacommunities.org/id/metropolitan-district-council/wolverhampton","Martyn Billings Automotive","19979","59.55","Services - Professional Fees","190275268","14/10/2016","Fleet Services","Fleet Management","R4400"
"Wolverhampton City Council","http://opendatacommunities.org/id/metropolitan-district-council/wolverhampton","Martyn Billings Automotive","19979","14.77","Services - Professional Fees","190275268","14/10/2016","Fleet Services","Fleet Management","R4400"
"Wolverhampton City Council","http://opendatacommunities.org/id/metropolitan-district-council/wolverhampton","Martyn Billings Automotive","19979","6.20","Services - Professional Fees","190275268","14/10/2016","Fleet Services","Fleet Management","R4400"
"Wolverhampton City Council","http://opendatacommunities.org/id/metropolitan-district-council/wolverhampton","Martyn Billings Automotive","19979","9.46","Services - Professional Fees","190275268","14/10/2016","Fleet Services","Fleet Management","R4400"
"Wolverhampton City Council","http://opendatacommunities.org/id/metropolitan-district-council/wolverhampton","Martyn Billings Automotive","19979","5.45","Services - Professional Fees","190275268","14/10/2016","Fleet Services","Fleet Management","R4400"
"Wolverhampton City Council","http://opendatacommunities.org/id/metropolitan-district-council/wolverhampton","Martyn Billings Automotive","19979","6.99","Services - Professional Fees","190275268","14/10/2016","Fleet Services","Fleet Management","R4400"
"Wolverhampton City Council","http://opendatacommunities.org/id/metropolitan-district-council/wolverhampton","Martyn Billings Automotive","19979","5.60","Services - Professional Fees","190275268","14/10/2016","Fleet Services","Fleet Management","R4400"
"Wolverhampton City Council","http://opendatacommunities.org/id/metropolitan-district-council/wolverhampton","Martyn Billings Automotive","19979","40.00","Services - Professional Fees","190275268","14/10/2016","Fleet Services","Fleet Management","R4400"
"Wolverhampton City Council","http://opendatacommunities.org/id/metropolitan-district-council/wolverhampton","Martyn Billings Automotive","19979","128.54","Services - Professional Fees","190275268","14/10/2016","Fleet Services","Fleet Management","R4400"
"Wolverhampton City Council","http://opendatacommunities.org/id/metropolitan-district-council/wolverhampton","Martyn Billings Automotive","19979","157.50","Services - Professional Fees","190275268","14/10/2016","Fleet Services","Fleet Management","R4400"
"Wolverhampton City Council","http://opendatacommunities.org/id/metropolitan-district-council/wolverhampton","Martyn Billings Automotive","19958","90.79","Services - Professional Fees","190275264","14/10/2016","Fleet Services","Fleet Management","R4400"
"Wolverhampton City Council","http://opendatacommunities.org/id/metropolitan-district-council/wolverhampton","Martyn Billings Automotive","19934","59.55","Services - Professional Fees","190275261","14/10/2016","Fleet Services","Fleet Management","R4400"
"Wolverhampton City Council","http://opendatacommunities.org/id/metropolitan-district-council/wolverhampton","Martyn Billings Automotive","19984","45.00","Services - Professional Fees","190275269","14/10/2016","Fleet Services","Fleet Management","R4400"
"Wolverhampton City Council","http://opendatacommunities.org/id/metropolitan-district-council/wolverhampton","Martyn Billings Automotive","19984","6.20","Services - Professional Fees","190275269","14/10/2016","Fleet Services","Fleet Management","R4400"
"Wolverhampton City Council","http://opendatacommunities.org/id/metropolitan-district-council/wolverhampton","Martyn Billings Automotive","19921","5.45","Services - Professional Fees","190275259","14/10/2016","Fleet Services","Fleet Management","R4400"
"Wolverhampton City Council","http://opendatacommunities.org/id/metropolitan-district-council/wolverhampton","Martyn Billings Automotive","19921","0.90","Services - Professional Fees","190275259","14/10/2016","Fleet Services","Fleet Management","R4400"
"Wolverhampton City Council","http://opendatacommunities.org/id/metropolitan-district-council/wolverhampton","Martyn Billings Automotive","19921","1.55","Services - Professional Fees","190275259","14/10/2016","Fleet Services","Fleet Management","R4400"
"Wolverhampton City Council","http://opendatacommunities.org/id/metropolitan-district-council/wolverhampton","Martyn Billings Automotive","19921","0.87","Services - Professional Fees","190275259","14/10/2016","Fleet Services","Fleet Management","R4400"
"Wolverhampton City Council","http://opendatacommunities.org/id/metropolitan-district-council/wolverhampton","Martyn Billings Automotive","19965","5.45","Services - Professional Fees","190275266","14/10/2016","Fleet Services","Fleet Management","R4400"
"Wolverhampton City Council","http://opendatacommunities.org/id/metropolitan-district-council/wolverhampton","Martyn Billings Automotive","19984","35.00","Services - Professional Fees","190275269","14/10/2016","Fleet Services","Fleet Management","R4400"
"Wolverhampton City Council","http://opendatacommunities.org/id/metropolitan-district-council/wolverhampton","Martyn Billings Automotive","19984","5.45","Services - Professional Fees","190275269","14/10/2016","Fleet Services","Fleet Management","R4400"
"Wolverhampton City Council","http://opendatacommunities.org/id/metropolitan-district-council/wolverhampton","Martyn Billings Automotive","19996","14.77","Services - Professional Fees","190275270","14/10/2016","Fleet Services","Fleet Management","R4400"
"Wolverhampton City Council","http://opendatacommunities.org/id/metropolitan-district-council/wolverhampton","Martyn Billings Automotive","19996","59.55","Services - Professional Fees","190275270","14/10/2016","Fleet Services","Fleet Management","R4400"
"Wolverhampton City Council","http://opendatacommunities.org/id/metropolitan-district-council/wolverhampton","Martyn Billings Automotive","19996","0.90","Services - Professional Fees","190275270","14/10/2016","Fleet Services","Fleet Management","R4400"
"Wolverhampton City Council","http://opendatacommunities.org/id/metropolitan-district-council/wolverhampton","Martyn Billings Automotive","19996","5.45","Services - Professional Fees","190275270","14/10/2016","Fleet Services","Fleet Management","R4400"
"Wolverhampton City Council","http://opendatacommunities.org/id/metropolitan-district-council/wolverhampton","Martyn Billings Automotive","19996","47.20","Services - Professional Fees","190275270","14/10/2016","Fleet Services","Fleet Management","R4400"
"Wolverhampton City Council","http://opendatacommunities.org/id/metropolitan-district-council/wolverhampton","Martyn Billings Automotive","19996","14.35","Services - Professional Fees","190275270","14/10/2016","Fleet Services","Fleet Management","R4400"
"Wolverhampton City Council","http://opendatacommunities.org/id/metropolitan-district-council/wolverhampton","Martyn Billings Automotive","19996","6.23","Services - Professional Fees","190275270","14/10/2016","Fleet Services","Fleet Management","R4400"
"Wolverhampton City Council","http://opendatacommunities.org/id/metropolitan-district-council/wolverhampton","Martyn Billings Automotive","19996","105.00","Services - Professional Fees","190275270","14/10/2016","Fleet Services","Fleet Management","R4400"
"Wolverhampton City Council","http://opendatacommunities.org/id/metropolitan-district-council/wolverhampton","Martyn Billings Automotive","19996","6.20","Services - Professional Fees","190275270","14/10/2016","Fleet Services","Fleet Management","R4400"
"Wolverhampton City Council","http://opendatacommunities.org/id/metropolitan-district-council/wolverhampton","Martyn Billings Automotive","20006","1.55","Services - Professional Fees","190275272","14/10/2016","Fleet Services","Fleet Management","R4400"
"Wolverhampton City Council","http://opendatacommunities.org/id/metropolitan-district-council/wolverhampton","Martyn Billings Automotive","20002","45.00","Services - Professional Fees","190275271","14/10/2016","Fleet Services","Fleet Management","R4400"
"Wolverhampton City Council","http://opendatacommunities.org/id/metropolitan-district-council/wolverhampton","Martyn Billings Automotive","20002","18.40","Services - Professional Fees","190275271","14/10/2016","Fleet Services","Fleet Management","R4400"
"Wolverhampton City Council","http://opendatacommunities.org/id/metropolitan-district-council/wolverhampton","Martyn Billings Automotive","20002","1.55","Services - Professional Fees","190275271","14/10/2016","Fleet Services","Fleet Management","R4400"
"Wolverhampton City Council","http://opendatacommunities.org/id/metropolitan-district-council/wolverhampton","Martyn Billings Automotive","20002","70.00","Services - Professional Fees","190275271","14/10/2016","Fleet Services","Fleet Management","R4400"
"Wolverhampton City Council","http://opendatacommunities.org/id/metropolitan-district-council/wolverhampton","Martyn Billings Automotive","20002","5.45","Services - Professional Fees","190275271","14/10/2016","Fleet Services","Fleet Management","R4400"
"Wolverhampton City Council","http://opendatacommunities.org/id/metropolitan-district-council/wolverhampton","Martyn Billings Automotive","20002","6.20","Services - Professional Fees","190275271","14/10/2016","Fleet Services","Fleet Management","R4400"
"Wolverhampton City Council","http://opendatacommunities.org/id/metropolitan-district-council/wolverhampton","Martyn Billings Automotive","20002","0.90","Services - Professional Fees","190275271","14/10/2016","Fleet Services","Fleet Management","R4400"
"Wolverhampton City Council","http://opendatacommunities.org/id/metropolitan-district-council/wolverhampton","Martyn Billings Automotive","20006","6.20","Services - Professional Fees","190275272","14/10/2016","Fleet Services","Fleet Management","R4400"
"Wolverhampton City Council","http://opendatacommunities.org/id/metropolitan-district-council/wolverhampton","Martyn Billings Automotive","20006","35.00","Services - Professional Fees","190275272","14/10/2016","Fleet Services","Fleet Management","R4400"
"Wolverhampton City Council","http://opendatacommunities.org/id/metropolitan-district-council/wolverhampton","Martyn Billings Automotive","20006","45.00","Services - Professional Fees","190275272","14/10/2016","Fleet Services","Fleet Management","R4400"
"Wolverhampton City Council","http://opendatacommunities.org/id/metropolitan-district-council/wolverhampton","Matthew Clark Wholesale Limited","59156246","643.78","Provisions (Resale)","130138981","26/10/2016","Visitor Economy","The Little Civic","R4102"
"Wolverhampton City Council","http://opendatacommunities.org/id/metropolitan-district-council/wolverhampton","Matthew Clark Wholesale Limited","59136331 Rl","7,686.48","Provisions (Resale)","130138980","14/10/2016","Visitor Economy","Catering Overhead Account","R4102"
"Wolverhampton City Council","http://opendatacommunities.org/id/metropolitan-district-council/wolverhampton","Mcauliffe Civil Engineering Limited","SL003944","4,599.80","Construction and Conversion","130140191","12/10/2016","","Capital Maintenance - Structural Works","C1100"
"Wolverhampton City Council","http://opendatacommunities.org/id/metropolitan-district-council/wolverhampton","Medpage Limited T/A Easylink UK","58190","420.00","Equipment - Purchase","130139597","07/10/2016","Independent Living Service","Telecare","R4000"
"Wolverhampton City Council","http://opendatacommunities.org/id/metropolitan-district-council/wolverhampton","Medpage Limited T/A Easylink UK","58250","115.50","Equipment - Purchase","130140288","12/10/2016","Independent Living Service","Telecare","R4000"
"Wolverhampton City Council","http://opendatacommunities.org/id/metropolitan-district-council/wolverhampton","Melissa Nicholls","1525","398.00","Hospitality","130141158","19/10/2016","Democratic Services","Mayoral Expenses","R4612"
"Wolverhampton City Council","http://opendatacommunities.org/id/metropolitan-district-council/wolverhampton","Mercian Shutters Limited","39718","270.00","R&M - Departmental planned (external)","130138814","12/10/2016","Facilities Management","Civic Centre","R2001"
"Wolverhampton City Council","http://opendatacommunities.org/id/metropolitan-district-council/wolverhampton","Mercian Shutters Limited","39744","4,449.12","R&M - Departmental planned (external)","130139351","14/10/2016","Maintenance Programme","Centralised R&M","R2001"
"Wolverhampton City Council","http://opendatacommunities.org/id/metropolitan-district-council/wolverhampton","Mercian Shutters Limited","39672","298.00","R&M - Departmental planned (external)","130135129","14/10/2016","Maintenance Programme","Centralised R&M","R2001"
"Wolverhampton City Council","http://opendatacommunities.org/id/metropolitan-district-council/wolverhampton","Michael Page Int Recruitment Limited","6050887","2,000.00","Agency Staff","130136819","07/10/2016","Strategic Finance","Strategic Finance","R1100"
"Wolverhampton City Council","http://opendatacommunities.org/id/metropolitan-district-council/wolverhampton","Michael Page Int Recruitment Limited","6054664","2,000.00","Agency Staff","130137696","14/10/2016","Strategic Finance","Strategic Finance","R1100"
